Workbook

Sheet DKB
G1: Spielleiter: Robert Rammler | R1: Spielbericht
E2: Senioren | J2: =IF(übertrag!Q11=TRUE,"X","") ->  | N2: Land: | P2: Deutschland
A3: Klubspiel | C3: =IF(übertrag!Q2=TRUE,"X","") -> X | E3: Frauen | J3: =IF(übertrag!Q6=TRUE,"X","") ->  | N3: Ort: | P3: =Daten!B1 -> Zeil am Main | U3: Datum: | V3: 2022-01-22
A4: Pokalspiel | C4: =IF(übertrag!Q3=TRUE,"X","") ->  | E4: Männer | J4: =IF(übertrag!Q5=TRUE,"X","") -> X | N4: Bahnanlage: | P4: =Daten!C1 -> Zeiler EssZimmer
A5: Länderspiel | C5: =IF(übertrag!Q4=TRUE,"X","") ->  | E5: U 23 | J5: =IF(übertrag!Q7=TRUE,"X","") ->  | N5: Spielbeginn: | P5: 22.01.2022 13.30 | U5: Spielende: | V5: 44583.71284
E6: U 18 | J6: =IF(übertrag!Q8=TRUE,"X","") ->  | N6: Liga/Klasse: | P6: 2. BL Mitte
L7: Spiel Nr. | X7: Spieltag: | Y7: =IF(übertrag!AE25=23,"",übertrag!AE25) -> 14
C8: Heimmannschaft: | D8: ='MANNSCHAFTEN+SPIELER'!O3 -> 1.SKK Gut Holz Zeil 1 | L8: 12081 | Q8: Gastmannschaft: | R8: =IF(übertrag!H2,VLOOKUP(übertrag!H2,Gastmannschaft,2,),"") -> Rot-Weiß Hirschau
A10: Pa.-Nr./Mo.Ja | B10: Vorname, Name | E10: FW | F10: Abr | G10: Volle | H10: Ges | J10: SP | K10: MP | O10: Pa.-Nr./Mo.Ja | P10: Vorname, Name | S10: FW | T10: Abr | U10: Volle | V10: Ges | X10: SP | Y10: MP
A11: =übertrag!O16 -> 120763 | B11: =übertrag!Z2 -> Holger Jahn | E11: =IF(Einzelergebnisse!A5=0,"",Einzelergebnisse!E5) -> 1 | F11: =IF(Einzelergebnisse!D5=0,"",Einzelergebnisse!D5) -> 61 | G11: =IF(Einzelergebnisse!C5=0,"",Einzelergebnisse!C5) -> 96 | H11: =IF(Einzelergebnisse!F5=0,"",Einzelergebnisse!F5) -> 157 | J11: =IF(Einzelergebnisse!$A$5=0,"",IF(H11="",0,IF(H11=V11,0.5,IF(H11>V11,1,IF(AND(H11>0,V11=""),1,0))))) -> 0 | K11: =IF(Einzelergebnisse!A5=0,"",IF(H11="",0,IF(J16&H16=X16&V16,0.5,IF(J16&H16>X16&V16,1,IF(J16>X16,1,0))))) -> 0 | O11: =IF(übertrag!O2="",übertrag!P2,übertrag!O2) -> 107246 | P11: =IF(übertrag!K2="",übertrag!L2,übertrag!K2) -> Bastian Baumer | S11: =IF(Einzelergebnisse!H5=0,"",Einzelergebnisse!L5) -> 0 | T11: =IF(Einzelergebnisse!K5=0,"",Einzelergebnisse!K5) -> 72 | U11: =IF(Einzelergebnisse!J5=0,"",Einzelergebnisse!J5) -> 97 | V11: =IF(Einzelergebnisse!M5=0,"",Einzelergebnisse!M5) -> 169 | X11: =IF(Einzelergebnisse!$H$5=0,"",IF(V11="",0,IF(V11=H11,0.5,IF(V11>H11,1,IF(AND(V11>0,H11=""),1,0))))) -> 1 | Y11: =IF(Einzelergebnisse!H5=0,"",IF(V11="",0,IF(X16&V16=J16&H16,0.5,IF(X16&V16>J16&H16,1,IF(X16>J16,1,0))))) -> 1
A12: =übertrag!M16 -> 06.72 | E12: =IF(Einzelergebnisse!A5=0,"",Einzelergebnisse!E6) -> 0 | F12: =IF(Einzelergebnisse!D6=0,"",Einzelergebnisse!D6) -> 42 | G12: =IF(Einzelergebnisse!C6=0,"",Einzelergebnisse!C6) -> 101 | H12: =IF(Einzelergebnisse!F6=0,"",Einzelergebnisse!F6) -> 143 | J12: =IF(Einzelergebnisse!$A$5=0,"",IF(H12="",0,IF(H12=V12,0.5,IF(H12>V12,1,IF(AND(H12>0,V12=""),1,0))))) -> 0 | O12: =IF(übertrag!M2="",übertrag!N2,übertrag!M2) -> 10.79 | S12: =IF(Einzelergebnisse!H5=0,"",Einzelergebnisse!L6) -> 0 | T12: =IF(Einzelergebnisse!K6=0,"",Einzelergebnisse!K6) -> 63 | U12: =IF(Einzelergebnisse!J6=0,"",Einzelergebnisse!J6) -> 92 | V12: =IF(Einzelergebnisse!M6=0,"",Einzelergebnisse!M6) -> 155 | X12: =IF(Einzelergebnisse!$H$5=0,"",IF(V12="",0,IF(V12=H12,0.5,IF(V12>H12,1,IF(AND(V12>0,H12=""),1,0))))) -> 1
A13: Pa.-Nr./Mo.Ja | B13: Awsp. Vorname, Name | O13: Pa.-Nr./Mo.Ja | P13: Awsp. Vorname, Name
A14: =übertrag!O23 -> 0 | B14: =übertrag!Z9 -> 0 | E14: =IF(Einzelergebnisse!A5=0,"",Einzelergebnisse!E7) -> 0 | F14: =IF(Einzelergebnisse!D7=0,"",Einzelergebnisse!D7) -> 54 | G14: =IF(Einzelergebnisse!C7=0,"",Einzelergebnisse!C7) -> 84 | H14: =IF(Einzelergebnisse!F7=0,"",Einzelergebnisse!F7) -> 138 | J14: =IF(Einzelergebnisse!$A$5=0,"",IF(H14="",0,IF(H14=V14,0.5,IF(H14>V14,1,IF(AND(H14>0,V14=""),1,0))))) -> 0 | O14: =IF(übertrag!O8="",übertrag!P8,übertrag!O8) -> 0 | P14: =IF(übertrag!K8="",übertrag!L8,übertrag!K8) -> 0 | S14: =IF(Einzelergebnisse!H5=0,"",Einzelergebnisse!L7) -> 0 | T14: =IF(Einzelergebnisse!K7=0,"",Einzelergebnisse!K7) -> 63 | U14: =IF(Einzelergebnisse!J7=0,"",Einzelergebnisse!J7) -> 88 | V14: =IF(Einzelergebnisse!M7=0,"",Einzelergebnisse!M7) -> 151 | X14: =IF(Einzelergebnisse!$H$5=0,"",IF(V14="",0,IF(V14=H14,0.5,IF(V14>H14,1,IF(AND(V14>0,H14=""),1,0))))) -> 1
A15: =übertrag!M23 -> 00:00:00 | E15: =IF(Einzelergebnisse!A5=0,"",Einzelergebnisse!E8) -> 1 | F15: =IF(Einzelergebnisse!D8=0,"",Einzelergebnisse!D8) -> 53 | G15: =IF(Einzelergebnisse!C8=0,"",Einzelergebnisse!C8) -> 93 | H15: =IF(Einzelergebnisse!F8=0,"",Einzelergebnisse!F8) -> 146 | J15: =IF(Einzelergebnisse!$A$5=0,"",IF(H15="",0,IF(H15=V15,0.5,IF(H15>V15,1,IF(AND(H15>0,V15=""),1,0))))) -> 1 | O15: =IF(übertrag!M8="",übertrag!N8,übertrag!M8) -> 00:00:00 | S15: =IF(Einzelergebnisse!H5=0,"",Einzelergebnisse!L8) -> 1 | T15: =IF(Einzelergebnisse!K8=0,"",Einzelergebnisse!K8) -> 35 | U15: =IF(Einzelergebnisse!J8=0,"",Einzelergebnisse!J8) -> 92 | V15: =IF(Einzelergebnisse!M8=0,"",Einzelergebnisse!M8) -> 127 | X15: =IF(Einzelergebnisse!$H$5=0,"",IF(V15="",0,IF(V15=H15,0.5,IF(V15>H15,1,IF(AND(V15>0,H15=""),1,0))))) -> 0
E16: =IF(Einzelergebnisse!A5=0,"",SUM(E11:E15)) -> 2 | F16: =IF(Einzelergebnisse!A5=0,"",SUM(F11:F15)) -> 210 | G16: =IF(Einzelergebnisse!A5=0,"",SUM(G11:G15)) -> 374 | H16: =IF(Einzelergebnisse!A5=0,"",SUM(H11:H15)) -> 584 | J16: =IF(Einzelergebnisse!A5=0,"",SUM(J11:J12,J14:J15)) -> 1 | S16: =IF(Einzelergebnisse!H5=0,"",SUM(S11,S12,S14,S15)) -> 1 | T16: =IF(Einzelergebnisse!H5=0,"",SUM(T11,T12,T14,T15)) -> 233 | U16: =IF(Einzelergebnisse!H5=0,"",SUM(U11,U12,U14,U15)) -> 369 | V16: =IF(Einzelergebnisse!H5=0,"",SUM(V11,V12,V14,V15)) -> 602 | X16: =IF(Einzelergebnisse!H5=0,"",SUM(X11:X12,X14:X15)) -> 3
A17: Pa.-Nr./Mo.Ja | B17: Vorname, Name | E17: FW | F17: Abr | G17: Volle | H17: Ges | J17: SP | K17: MP | O17: Pa.-Nr./Mo.Ja | P17: Vorname, Name | S17: FW | T17: Abr | U17: Volle | V17: Ges | X17: SP | Y17: MP
A18: =übertrag!O17 -> 79060 | B18: =übertrag!Z3 -> Silvan Meinunger | E18: =IF(Einzelergebnisse!A13=0,"",Einzelergebnisse!E13) -> 0 | F18: =IF(Einzelergebnisse!D13=0,"",Einzelergebnisse!D13) -> 54 | G18: =IF(Einzelergebnisse!C13=0,"",Einzelergebnisse!C13) -> 103 | H18: =IF(Einzelergebnisse!F13=0,"",Einzelergebnisse!F13) -> 157 | J18: =IF(Einzelergebnisse!$A$13=0,"",IF(H18="",0,IF(H18=V18,0.5,IF(H18>V18,1,IF(AND(H18>0,V18=""),1,0))))) -> 1 | K18: =IF(Einzelergebnisse!A13=0,"",IF(H18="",0,IF(J23&H23=X23&V23,0.5,IF(J23&H23>X23&V23,1,IF(J23>X23,1,0))))) -> 1 | O18: =IF(übertrag!O3="",übertrag!P3,übertrag!O3) -> 16270 | P18: =IF(übertrag!K3="",übertrag!L3,übertrag!K3) -> Marcus Gevatter | S18: =IF(Einzelergebnisse!H13=0,"",Einzelergebnisse!L13) -> 1 | T18: =IF(Einzelergebnisse!K13=0,"",Einzelergebnisse!K13) -> 49 | U18: =IF(Einzelergebnisse!J13=0,"",Einzelergebnisse!J13) -> 84 | V18: =IF(Einzelergebnisse!M13=0,"",Einzelergebnisse!M13) -> 133 | X18: =IF(Einzelergebnisse!$H$13=0,"",IF(V18="",0,IF(V18=H18,0.5,IF(V18>H18,1,IF(AND(V18>0,H18=""),1,0))))) -> 0 | Y18: =IF(Einzelergebnisse!H13=0,"",IF(V18="",0,IF(X23&V23=J23&H23,0.5,IF(X23&V23>J23&H23,1,IF(X23>J23,1,0))))) -> 0
A19: =übertrag!M17 -> 10.03 | E19: =IF(Einzelergebnisse!A13=0,"",Einzelergebnisse!E14) -> 1 | F19: =IF(Einzelergebnisse!D14=0,"",Einzelergebnisse!D14) -> 36 | G19: =IF(Einzelergebnisse!C14=0,"",Einzelergebnisse!C14) -> 96 | H19: =IF(Einzelergebnisse!F14=0,"",Einzelergebnisse!F14) -> 132 | J19: =IF(Einzelergebnisse!$A$13=0,"",IF(H19="",0,IF(H19=V19,0.5,IF(H19>V19,1,IF(AND(H19>0,V19=""),1,0))))) -> 0 | O19: =IF(übertrag!M3="",übertrag!N3,übertrag!M3) -> 04.98 | S19: =IF(Einzelergebnisse!H13=0,"",Einzelergebnisse!L14) -> 1 | T19: =IF(Einzelergebnisse!K14=0,"",Einzelergebnisse!K14) -> 51 | U19: =IF(Einzelergebnisse!J14=0,"",Einzelergebnisse!J14) -> 90 | V19: =IF(Einzelergebnisse!M14=0,"",Einzelergebnisse!M14) -> 141 | X19: =IF(Einzelergebnisse!$H$13=0,"",IF(V19="",0,IF(V19=H19,0.5,IF(V19>H19,1,IF(AND(V19>0,H19=""),1,0))))) -> 1
A20: Pa.-Nr./Mo.Ja | B20: Awsp. Vorname, Name | O20: Pa.-Nr./Mo.Ja | P20: Awsp. Vorname, Name
A21: =übertrag!O24 -> 0 | B21: =übertrag!Z10 -> 0 | E21: =IF(Einzelergebnisse!A13=0,"",Einzelergebnisse!E15) -> 0 | F21: =IF(Einzelergebnisse!D15=0,"",Einzelergebnisse!D15) -> 53 | G21: =IF(Einzelergebnisse!C15=0,"",Einzelergebnisse!C15) -> 103 | H21: =IF(Einzelergebnisse!F15=0,"",Einzelergebnisse!F15) -> 156 | J21: =IF(Einzelergebnisse!$A$13=0,"",IF(H21="",0,IF(H21=V21,0.5,IF(H21>V21,1,IF(AND(H21>0,V21=""),1,0))))) -> 0 | O21: =IF(übertrag!O9="",übertrag!P9,übertrag!O9) -> 0 | P21: =IF(übertrag!K9="",übertrag!L9,übertrag!K9) -> 0 | S21: =IF(Einzelergebnisse!H13=0,"",Einzelergebnisse!L15) -> 0 | T21: =IF(Einzelergebnisse!K15=0,"",Einzelergebnisse!K15) -> 61 | U21: =IF(Einzelergebnisse!J15=0,"",Einzelergebnisse!J15) -> 98 | V21: =IF(Einzelergebnisse!M15=0,"",Einzelergebnisse!M15) -> 159 | X21: =IF(Einzelergebnisse!$H$13=0,"",IF(V21="",0,IF(V21=H21,0.5,IF(V21>H21,1,IF(AND(V21>0,H21=""),1,0))))) -> 1
A22: =übertrag!M24 -> 00:00:00 | E22: =IF(Einzelergebnisse!A13=0,"",Einzelergebnisse!E16) -> 0 | F22: =IF(Einzelergebnisse!D16=0,"",Einzelergebnisse!D16) -> 53 | G22: =IF(Einzelergebnisse!C16=0,"",Einzelergebnisse!C16) -> 98 | H22: =IF(Einzelergebnisse!F16=0,"",Einzelergebnisse!F16) -> 151 | J22: =IF(Einzelergebnisse!$A$13=0,"",IF(H22="",0,IF(H22=V22,0.5,IF(H22>V22,1,IF(AND(H22>0,V22=""),1,0))))) -> 1 | O22: =IF(übertrag!M9="",übertrag!N9,übertrag!M9) -> 00:00:00 | S22: =IF(Einzelergebnisse!H13=0,"",Einzelergebnisse!L16) -> 1 | T22: =IF(Einzelergebnisse!K16=0,"",Einzelergebnisse!K16) -> 53 | U22: =IF(Einzelergebnisse!J16=0,"",Einzelergebnisse!J16) -> 82 | V22: =IF(Einzelergebnisse!M16=0,"",Einzelergebnisse!M16) -> 135 | X22: =IF(Einzelergebnisse!$H$13=0,"",IF(V22="",0,IF(V22=H22,0.5,IF(V22>H22,1,IF(AND(V22>0,H22=""),1,0))))) -> 0
E23: =IF(Einzelergebnisse!A13=0,"",SUM(E18:E22)) -> 1 | F23: =IF(Einzelergebnisse!A13=0,"",SUM(F18:F22)) -> 196 | G23: =IF(Einzelergebnisse!A13=0,"",SUM(G18:G22)) -> 400 | H23: =IF(Einzelergebnisse!A13=0,"",SUM(H18:H22)) -> 596 | J23: =IF(Einzelergebnisse!A13=0,"",SUM(J18:J19,J21:J22)) -> 2 | S23: =IF(Einzelergebnisse!H13=0,"",SUM(S18,S19,S21,S22)) -> 3 | T23: =IF(Einzelergebnisse!H13=0,"",SUM(T18,T19,T21,T22)) -> 214 | U23: =IF(Einzelergebnisse!H13=0,"",SUM(U18,U19,U21,U22)) -> 354 | V23: =IF(Einzelergebnisse!H13=0,"",SUM(V18,V19,V21,V22)) -> 568 | X23: =IF(Einzelergebnisse!H13=0,"",SUM(X18:X19,X21:X22)) -> 2
A24: Pa.-Nr./Mo.Ja | B24: Vorname, Name | E24: FW | F24: Abr | G24: Volle | H24: Ges | J24: SP | K24: MP | O24: Pa.-Nr./Mo.Ja | P24: Vorname, Name | S24: FW | T24: Abr | U24: Volle | V24: Ges | X24: SP | Y24: MP
A25: =übertrag!O18 -> 29339 | B25: =übertrag!Z4 -> Pascal Österling | E25: =IF(Einzelergebnisse!A21=0,"",Einzelergebnisse!E21) -> 0 | F25: =IF(Einzelergebnisse!D21=0,"",Einzelergebnisse!D21) -> 50 | G25: =IF(Einzelergebnisse!C21=0,"",Einzelergebnisse!C21) -> 92 | H25: =IF(Einzelergebnisse!F21=0,"",Einzelergebnisse!F21) -> 142 | J25: =IF(Einzelergebnisse!$A$21=0,"",IF(H25="",0,IF(H25=V25,0.5,IF(H25>V25,1,IF(AND(H25>0,V25=""),1,0))))) -> 0 | K25: =IF(Einzelergebnisse!A21=0,"",IF(H25="",0,IF(J30&H30=X30&V30,0.5,IF(J30&H30>X30&V30,1,IF(J30>X30,1,0))))) -> 0 | O25: =IF(übertrag!O4="",übertrag!P4,übertrag!O4) -> 107563 | P25: =IF(übertrag!K4="",übertrag!L4,übertrag!K4) -> Thomas Immer | S25: =IF(Einzelergebnisse!H21=0,"",Einzelergebnisse!L21) -> 0 | T25: =IF(Einzelergebnisse!K21=0,"",Einzelergebnisse!K21) -> 59 | U25: =IF(Einzelergebnisse!J21=0,"",Einzelergebnisse!J21) -> 91 | V25: =IF(Einzelergebnisse!M21=0,"",Einzelergebnisse!M21) -> 150 | X25: =IF(Einzelergebnisse!$H$21=0,"",IF(V25="",0,IF(V25=H25,0.5,IF(V25>H25,1,IF(AND(V25>0,H25=""),1,0))))) -> 1 | Y25: =IF(Einzelergebnisse!H21=0,"",IF(V25="",0,IF(X30&V30=J30&H30,0.5,IF(X30&V30>J30&H30,1,IF(X30>J30,1,0))))) -> 1
A26: =übertrag!M18 -> 06.00 | E26: =IF(Einzelergebnisse!A21=0,"",Einzelergebnisse!E22) -> 0 | F26: =IF(Einzelergebnisse!D22=0,"",Einzelergebnisse!D22) -> 53 | G26: =IF(Einzelergebnisse!C22=0,"",Einzelergebnisse!C22) -> 99 | H26: =IF(Einzelergebnisse!F22=0,"",Einzelergebnisse!F22) -> 152 | J26: =IF(Einzelergebnisse!$A$21=0,"",IF(H26="",0,IF(H26=V26,0.5,IF(H26>V26,1,IF(AND(H26>0,V26=""),1,0))))) -> 1 | O26: =IF(übertrag!M4="",übertrag!N4,übertrag!M4) -> 07.84 | S26: =IF(Einzelergebnisse!H21=0,"",Einzelergebnisse!L22) -> 1 | T26: =IF(Einzelergebnisse!K22=0,"",Einzelergebnisse!K22) -> 54 | U26: =IF(Einzelergebnisse!J22=0,"",Einzelergebnisse!J22) -> 96 | V26: =IF(Einzelergebnisse!M22=0,"",Einzelergebnisse!M22) -> 150 | X26: =IF(Einzelergebnisse!$H$21=0,"",IF(V26="",0,IF(V26=H26,0.5,IF(V26>H26,1,IF(AND(V26>0,H26=""),1,0))))) -> 0
A27: Pa.-Nr./Mo.Ja | B27: Awsp. Vorname, Name | O27: Pa.-Nr./Mo.Ja | P27: Awsp. Vorname, Name
A28: =übertrag!O25 -> 0 | B28: =übertrag!Z11 -> 0 | E28: =IF(Einzelergebnisse!A21=0,"",Einzelergebnisse!E23) -> 0 | F28: =IF(Einzelergebnisse!D23=0,"",Einzelergebnisse!D23) -> 45 | G28: =IF(Einzelergebnisse!C23=0,"",Einzelergebnisse!C23) -> 79 | H28: =IF(Einzelergebnisse!F23=0,"",Einzelergebnisse!F23) -> 124 | J28: =IF(Einzelergebnisse!$A$21=0,"",IF(H28="",0,IF(H28=V28,0.5,IF(H28>V28,1,IF(AND(H28>0,V28=""),1,0))))) -> 0 | O28: =IF(übertrag!O10="",übertrag!P10,übertrag!O10) -> 0 | P28: =IF(übertrag!K10="",übertrag!L10,übertrag!K10) -> 0 | S28: =IF(Einzelergebnisse!H21=0,"",Einzelergebnisse!L23) -> 0 | T28: =IF(Einzelergebnisse!K23=0,"",Einzelergebnisse!K23) -> 44 | U28: =IF(Einzelergebnisse!J23=0,"",Einzelergebnisse!J23) -> 100 | V28: =IF(Einzelergebnisse!M23=0,"",Einzelergebnisse!M23) -> 144 | X28: =IF(Einzelergebnisse!$H$21=0,"",IF(V28="",0,IF(V28=H28,0.5,IF(V28>H28,1,IF(AND(V28>0,H28=""),1,0))))) -> 1
A29: =übertrag!M25 -> 00:00:00 | E29: =IF(Einzelergebnisse!A21=0,"",Einzelergebnisse!E24) -> 1 | F29: =IF(Einzelergebnisse!D24=0,"",Einzelergebnisse!D24) -> 43 | G29: =IF(Einzelergebnisse!C24=0,"",Einzelergebnisse!C24) -> 91 | H29: =IF(Einzelergebnisse!F24=0,"",Einzelergebnisse!F24) -> 134 | J29: =IF(Einzelergebnisse!$A$21=0,"",IF(H29="",0,IF(H29=V29,0.5,IF(H29>V29,1,IF(AND(H29>0,V29=""),1,0))))) -> 0 | O29: =IF(übertrag!M10="",übertrag!N10,übertrag!M10) -> 00:00:00 | S29: =IF(Einzelergebnisse!H21=0,"",Einzelergebnisse!L24) -> 0 | T29: =IF(Einzelergebnisse!K24=0,"",Einzelergebnisse!K24) -> 44 | U29: =IF(Einzelergebnisse!J24=0,"",Einzelergebnisse!J24) -> 97 | V29: =IF(Einzelergebnisse!M24=0,"",Einzelergebnisse!M24) -> 141 | X29: =IF(Einzelergebnisse!$H$21=0,"",IF(V29="",0,IF(V29=H29,0.5,IF(V29>H29,1,IF(AND(V29>0,H29=""),1,0))))) -> 1
E30: =IF(Einzelergebnisse!A21=0,"",SUM(E25:E29)) -> 1 | F30: =IF(Einzelergebnisse!A21=0,"",SUM(F25:F29)) -> 191 | G30: =IF(Einzelergebnisse!A21=0,"",SUM(G25:G29)) -> 361 | H30: =IF(Einzelergebnisse!A21=0,"",SUM(H25:H29)) -> 552 | J30: =IF(Einzelergebnisse!A21=0,"",SUM(J25:J26,J28:J29)) -> 1 | S30: =IF(Einzelergebnisse!H21=0,"",SUM(S25,S26,S28,S29)) -> 1 | T30: =IF(Einzelergebnisse!H21=0,"",SUM(T25,T26,T28,T29)) -> 201 | U30: =IF(Einzelergebnisse!H21=0,"",SUM(U25,U26,U28,U29)) -> 384 | V30: =IF(Einzelergebnisse!H21=0,"",SUM(V25,V26,V28,V29)) -> 585 | X30: =IF(Einzelergebnisse!H21=0,"",SUM(X25:X26,X28:X29)) -> 3
A31: Pa.-Nr./Mo.Ja | B31: Vorname, Name | E31: FW | F31: Abr | G31: Volle | H31: Ges | J31: SP | K31: MP | O31: Pa.-Nr./Mo.Ja | P31: Vorname, Name | S31: FW | T31: Abr | U31: Volle | V31: Ges | X31: Sp | Y31: MP
A32: =übertrag!O19 -> 120769 | B32: =übertrag!Z5 -> Olaf Pfaller | E32: =IF(Einzelergebnisse!A29=0,"",Einzelergebnisse!E29) -> 0 | F32: =IF(Einzelergebnisse!D29=0,"",Einzelergebnisse!D29) -> 45 | G32: =IF(Einzelergebnisse!C29=0,"",Einzelergebnisse!C29) -> 96 | H32: =IF(Einzelergebnisse!F29=0,"",Einzelergebnisse!F29) -> 141 | J32: =IF(Einzelergebnisse!$A$29=0,"",IF(H32="",0,IF(H32=V32,0.5,IF(H32>V32,1,IF(AND(H32>0,V32=""),1,0))))) -> 0 | K32: =IF(Einzelergebnisse!A29=0,"",IF(H32="",0,IF(J37&H37=X37&V37,0.5,IF(J37&H37>X37&V37,1,IF(J37>X37,1,0))))) -> 0 | O32: =IF(übertrag!O5="",übertrag!P5,übertrag!O5) -> 107632 | P32: =IF(übertrag!K5="",übertrag!L5,übertrag!K5) -> Manuel Donhauser | S32: =IF(Einzelergebnisse!H29=0,"",Einzelergebnisse!L29) -> 0 | T32: =IF(Einzelergebnisse!K29=0,"",Einzelergebnisse!K29) -> 59 | U32: =IF(Einzelergebnisse!J29=0,"",Einzelergebnisse!J29) -> 92 | V32: =IF(Einzelergebnisse!M29=0,"",Einzelergebnisse!M29) -> 151 | X32: =IF(Einzelergebnisse!$H$29=0,"",IF(V32="",0,IF(V32=H32,0.5,IF(V32>H32,1,IF(AND(V32>0,H32=""),1,0))))) -> 1 | Y32: =IF(Einzelergebnisse!H29=0,"",IF(V32="",0,IF(X37&V37=J37&H37,0.5,IF(X37&V37>J37&H37,1,IF(X37>J37,1,0))))) -> 1
A33: =übertrag!M19 -> 07.69 | E33: =IF(Einzelergebnisse!A29=0,"",Einzelergebnisse!E30) -> 0 | F33: =IF(Einzelergebnisse!D30=0,"",Einzelergebnisse!D30) -> 53 | G33: =IF(Einzelergebnisse!C30=0,"",Einzelergebnisse!C30) -> 87 | H33: =IF(Einzelergebnisse!F30=0,"",Einzelergebnisse!F30) -> 140 | J33: =IF(Einzelergebnisse!$A$29=0,"",IF(H33="",0,IF(H33=V33,0.5,IF(H33>V33,1,IF(AND(H33>0,V33=""),1,0))))) -> 0 | O33: =IF(übertrag!M5="",übertrag!N5,übertrag!M5) -> 09.96 | S33: =IF(Einzelergebnisse!H29=0,"",Einzelergebnisse!L30) -> 0 | T33: =IF(Einzelergebnisse!K30=0,"",Einzelergebnisse!K30) -> 45 | U33: =IF(Einzelergebnisse!J30=0,"",Einzelergebnisse!J30) -> 107 | V33: =IF(Einzelergebnisse!M30=0,"",Einzelergebnisse!M30) -> 152 | X33: =IF(Einzelergebnisse!$H$29=0,"",IF(V33="",0,IF(V33=H33,0.5,IF(V33>H33,1,IF(AND(V33>0,H33=""),1,0))))) -> 1
A34: Pa.-Nr./Mo.Ja | B34: Awsp. Vorname, Name | O34: Pa.-Nr./Mo.Ja | P34: Awsp. Vorname, Name
A35: =übertrag!O26 -> 0 | B35: =übertrag!Z12 -> 0 | E35: =IF(Einzelergebnisse!A29=0,"",Einzelergebnisse!E31) -> 0 | F35: =IF(Einzelergebnisse!D31=0,"",Einzelergebnisse!D31) -> 34 | G35: =IF(Einzelergebnisse!C31=0,"",Einzelergebnisse!C31) -> 102 | H35: =IF(Einzelergebnisse!F31=0,"",Einzelergebnisse!F31) -> 136 | J35: =IF(Einzelergebnisse!$A$29=0,"",IF(H35="",0,IF(H35=V35,0.5,IF(H35>V35,1,IF(AND(H35>0,V35=""),1,0))))) -> 0 | O35: =IF(übertrag!O11="",übertrag!P11,übertrag!O11) -> 0 | P35: =IF(übertrag!K11="",übertrag!L11,übertrag!K11) -> 0 | S35: =IF(Einzelergebnisse!H29=0,"",Einzelergebnisse!L31) -> 0 | T35: =IF(Einzelergebnisse!K31=0,"",Einzelergebnisse!K31) -> 87 | U35: =IF(Einzelergebnisse!J31=0,"",Einzelergebnisse!J31) -> 109 | V35: =IF(Einzelergebnisse!M31=0,"",Einzelergebnisse!M31) -> 196 | X35: =IF(Einzelergebnisse!$H$29=0,"",IF(V35="",0,IF(V35=H35,0.5,IF(V35>H35,1,IF(AND(V35>0,H35=""),1,0))))) -> 1
A36: =übertrag!M26 -> 00:00:00 | E36: =IF(Einzelergebnisse!A29=0,"",Einzelergebnisse!E32) -> 0 | F36: =IF(Einzelergebnisse!D32=0,"",Einzelergebnisse!D32) -> 44 | G36: =IF(Einzelergebnisse!C32=0,"",Einzelergebnisse!C32) -> 100 | H36: =IF(Einzelergebnisse!F32=0,"",Einzelergebnisse!F32) -> 144 | J36: =IF(Einzelergebnisse!$A$29=0,"",IF(H36="",0,IF(H36=V36,0.5,IF(H36>V36,1,IF(AND(H36>0,V36=""),1,0))))) -> 0 | O36: =IF(übertrag!M11="",übertrag!N11,übertrag!M11) -> 00:00:00 | S36: =IF(Einzelergebnisse!H29=0,"",Einzelergebnisse!L32) -> 0 | T36: =IF(Einzelergebnisse!K32=0,"",Einzelergebnisse!K32) -> 60 | U36: =IF(Einzelergebnisse!J32=0,"",Einzelergebnisse!J32) -> 102 | V36: =IF(Einzelergebnisse!M32=0,"",Einzelergebnisse!M32) -> 162 | X36: =IF(Einzelergebnisse!$H$29=0,"",IF(V36="",0,IF(V36=H36,0.5,IF(V36>H36,1,IF(AND(V36>0,H36=""),1,0))))) -> 1
E37: =IF(Einzelergebnisse!A29=0,"",SUM(E32:E36)) -> 0 | F37: =IF(Einzelergebnisse!A29=0,"",SUM(F32:F36)) -> 176 | G37: =IF(Einzelergebnisse!A29=0,"",SUM(G32:G36)) -> 385 | H37: =IF(Einzelergebnisse!A29=0,"",SUM(H32:H36)) -> 561 | J37: =IF(Einzelergebnisse!A29=0,"",SUM(J32:J33,J35:J36)) -> 0 | S37: =IF(Einzelergebnisse!H29=0,"",SUM(S32,S33,S35,S36)) -> 0 | T37: =IF(Einzelergebnisse!H29=0,"",SUM(T32,T33,T35,T36)) -> 251 | U37: =IF(Einzelergebnisse!H29=0,"",SUM(U32,U33,U35,U36)) -> 410 | V37: =IF(Einzelergebnisse!H29=0,"",SUM(V32,V33,V35,V36)) -> 661 | X37: =IF(Einzelergebnisse!H29=0,"",SUM(X32:X33,X35:X36)) -> 4
A38: Pa.-Nr./Mo.Ja | B38: Vorname, Name | E38: FW | F38: Abr | G38: Volle | H38: Ges | J38: SP | K38: MP | O38: Pa.-Nr./Mo.Ja | P38: Vorname, Name | S38: FW | T38: Abr | U38: Volle | V38: Ges | X38: SP | Y38: MP
A39: =übertrag!O20 -> 120774 | B39: =übertrag!Z6 -> Georg Schropp | E39: =IF(Einzelergebnisse!A37=0,"",Einzelergebnisse!E37) -> 2 | F39: =IF(Einzelergebnisse!D37=0,"",Einzelergebnisse!D37) -> 45 | G39: =IF(Einzelergebnisse!C37=0,"",Einzelergebnisse!C37) -> 90 | H39: =IF(Einzelergebnisse!F37=0,"",Einzelergebnisse!F37) -> 135 | J39: =IF(Einzelergebnisse!$A$37=0,"",IF(H39="",0,IF(H39=V39,0.5,IF(H39>V39,1,IF(AND(H39>0,V39=""),1,0))))) -> 0 | K39: =IF(Einzelergebnisse!A37=0,"",IF(H39="",0,IF(J44&H44=X44&V44,0.5,IF(J44&H44>X44&V44,1,IF(J44>X44,1,0))))) -> 0 | O39: =IF(übertrag!O6="",übertrag!P6,übertrag!O6) -> 111231 | P39: =IF(übertrag!K6="",übertrag!L6,übertrag!K6) -> Daniel Rösch | S39: =IF(Einzelergebnisse!H37=0,"",Einzelergebnisse!L37) -> 1 | T39: =IF(Einzelergebnisse!K37=0,"",Einzelergebnisse!K37) -> 42 | U39: =IF(Einzelergebnisse!J37=0,"",Einzelergebnisse!J37) -> 94 | V39: =IF(Einzelergebnisse!M37=0,"",Einzelergebnisse!M37) -> 136 | X39: =IF(Einzelergebnisse!$H$37=0,"",IF(V39="",0,IF(V39=H39,0.5,IF(V39>H39,1,IF(AND(V39>0,H39=""),1,0))))) -> 1 | Y39: =IF(Einzelergebnisse!H37=0,"",IF(V39="",0,IF(X44&V44=J44&H44,0.5,IF(X44&V44>J44&H44,1,IF(X44>J44,1,0))))) -> 1
A40: =übertrag!M20 -> 07.61 | E40: =IF(Einzelergebnisse!A37=0,"",Einzelergebnisse!E38) -> 3 | F40: =IF(Einzelergebnisse!D38=0,"",Einzelergebnisse!D38) -> 36 | G40: =IF(Einzelergebnisse!C38=0,"",Einzelergebnisse!C38) -> 87 | H40: =IF(Einzelergebnisse!F38=0,"",Einzelergebnisse!F38) -> 123 | J40: =IF(Einzelergebnisse!$A$37=0,"",IF(H40="",0,IF(H40=V40,0.5,IF(H40>V40,1,IF(AND(H40>0,V40=""),1,0))))) -> 0 | O40: =IF(übertrag!M6="",übertrag!N6,übertrag!M6) -> 01.91 | S40: =IF(Einzelergebnisse!H37=0,"",Einzelergebnisse!L38) -> 0 | T40: =IF(Einzelergebnisse!K38=0,"",Einzelergebnisse!K38) -> 70 | U40: =IF(Einzelergebnisse!J38=0,"",Einzelergebnisse!J38) -> 92 | V40: =IF(Einzelergebnisse!M38=0,"",Einzelergebnisse!M38) -> 162 | X40: =IF(Einzelergebnisse!$H$37=0,"",IF(V40="",0,IF(V40=H40,0.5,IF(V40>H40,1,IF(AND(V40>0,H40=""),1,0))))) -> 1
A41: Pa.-Nr./Mo.Ja | B41: Awsp. Vorname, Name | O41: Pa.-Nr./Mo.Ja | P41: Awsp. Vorname, Name
A42: =übertrag!O27 -> 120812 | B42: =übertrag!Z13 -> Andreas Aumüller | E42: =IF(Einzelergebnisse!A37=0,"",Einzelergebnisse!E39) -> 1 | F42: =IF(Einzelergebnisse!D39=0,"",Einzelergebnisse!D39) -> 42 | G42: =IF(Einzelergebnisse!C39=0,"",Einzelergebnisse!C39) -> 102 | H42: =IF(Einzelergebnisse!F39=0,"",Einzelergebnisse!F39) -> 144 | J42: =IF(Einzelergebnisse!$A$37=0,"",IF(H42="",0,IF(H42=V42,0.5,IF(H42>V42,1,IF(AND(H42>0,V42=""),1,0))))) -> 1 | O42: =IF(übertrag!O12="",übertrag!P12,übertrag!O12) -> 0 | P42: =IF(übertrag!K12="",übertrag!L12,übertrag!K12) -> 0 | S42: =IF(Einzelergebnisse!H37=0,"",Einzelergebnisse!L39) -> 0 | T42: =IF(Einzelergebnisse!K39=0,"",Einzelergebnisse!K39) -> 54 | U42: =IF(Einzelergebnisse!J39=0,"",Einzelergebnisse!J39) -> 85 | V42: =IF(Einzelergebnisse!M39=0,"",Einzelergebnisse!M39) -> 139 | X42: =IF(Einzelergebnisse!$H$37=0,"",IF(V42="",0,IF(V42=H42,0.5,IF(V42>H42,1,IF(AND(V42>0,H42=""),1,0))))) -> 0
A43: =übertrag!M27 -> 07.97 | E43: =IF(Einzelergebnisse!A37=0,"",Einzelergebnisse!E40) -> 1 | F43: =IF(Einzelergebnisse!D40=0,"",Einzelergebnisse!D40) -> 44 | G43: =IF(Einzelergebnisse!C40=0,"",Einzelergebnisse!C40) -> 79 | H43: =IF(Einzelergebnisse!F40=0,"",Einzelergebnisse!F40) -> 123 | J43: =IF(Einzelergebnisse!$A$37=0,"",IF(H43="",0,IF(H43=V43,0.5,IF(H43>V43,1,IF(AND(H43>0,V43=""),1,0))))) -> 0 | O43: =IF(übertrag!M12="",übertrag!N12,übertrag!M12) -> 00:00:00 | S43: =IF(Einzelergebnisse!H37=0,"",Einzelergebnisse!L40) -> 0 | T43: =IF(Einzelergebnisse!K40=0,"",Einzelergebnisse!K40) -> 51 | U43: =IF(Einzelergebnisse!J40=0,"",Einzelergebnisse!J40) -> 95 | V43: =IF(Einzelergebnisse!M40=0,"",Einzelergebnisse!M40) -> 146 | X43: =IF(Einzelergebnisse!$H$37=0,"",IF(V43="",0,IF(V43=H43,0.5,IF(V43>H43,1,IF(AND(V43>0,H43=""),1,0))))) -> 1
E44: =IF(Einzelergebnisse!A37=0,"",SUM(E39:E43)) -> 7 | F44: =IF(Einzelergebnisse!A37=0,"",SUM(F39:F43)) -> 167 | G44: =IF(Einzelergebnisse!A37=0,"",SUM(G39:G43)) -> 358 | H44: =IF(Einzelergebnisse!A37=0,"",SUM(H39:H43)) -> 525 | J44: =IF(Einzelergebnisse!A37=0,"",SUM(J39:J40,J42:J43)) -> 1 | S44: =IF(Einzelergebnisse!H37=0,"",SUM(S39,S40,S42,S43)) -> 1 | T44: =IF(Einzelergebnisse!H37=0,"",SUM(T39,T40,T42,T43)) -> 217 | U44: =IF(Einzelergebnisse!H37=0,"",SUM(U39,U40,U42,U43)) -> 366 | V44: =IF(Einzelergebnisse!H37=0,"",SUM(V39,V40,V42,V43)) -> 583 | X44: =IF(Einzelergebnisse!H37=0,"",SUM(X39:X40,X42:X43)) -> 3
A45: Pa.-Nr./Mo.Ja | B45: Vorname, Name | E45: FW | F45: Abr | G45: Volle | H45: Ges | J45: SP | K45: MP | O45: Pa.-Nr./Mo.Ja | P45: Vorname, Name | S45: FW | T45: Abr | U45: Volle | V45: Ges | X45: SP | Y45: MP
A46: =übertrag!O21 -> 23647 | B46: =übertrag!Z7 -> Marco Endres | E46: =IF(Einzelergebnisse!A45=0,"",Einzelergebnisse!E45) -> 0 | F46: =IF(Einzelergebnisse!D45=0,"",Einzelergebnisse!D45) -> 56 | G46: =IF(Einzelergebnisse!C45=0,"",Einzelergebnisse!C45) -> 96 | H46: =IF(Einzelergebnisse!F45=0,"",Einzelergebnisse!F45) -> 152 | J46: =IF(Einzelergebnisse!$A$45=0,"",IF(H46="",0,IF(H46=V46,0.5,IF(H46>V46,1,IF(AND(H46>0,V46=""),1,0))))) -> 1 | K46: =IF(Einzelergebnisse!A45=0,"",IF(H46="",0,IF(J51&H51=X51&V51,0.5,IF(J51&H51>X51&V51,1,IF(J51>X51,1,0))))) -> 1 | O46: =IF(übertrag!O7="",übertrag!P7,übertrag!O7) -> 113989 | P46: =IF(übertrag!K7="",übertrag!L7,übertrag!K7) -> Alexander Held | S46: =IF(Einzelergebnisse!H45=0,"",Einzelergebnisse!L45) -> 1 | T46: =IF(Einzelergebnisse!K45=0,"",Einzelergebnisse!K45) -> 42 | U46: =IF(Einzelergebnisse!J45=0,"",Einzelergebnisse!J45) -> 85 | V46: =IF(Einzelergebnisse!M45=0,"",Einzelergebnisse!M45) -> 127 | X46: =IF(Einzelergebnisse!$H$45=0,"",IF(V46="",0,IF(V46=H46,0.5,IF(V46>H46,1,IF(AND(V46>0,H46=""),1,0))))) -> 0 | Y46: =IF(Einzelergebnisse!H45=0,"",IF(V46="",0,IF(X51&V51=J51&H51,0.5,IF(X51&V51>J51&H51,1,IF(X51>J51,1,0))))) -> 0
A47: =übertrag!M21 -> 01.98 | E47: =IF(Einzelergebnisse!A45=0,"",Einzelergebnisse!E46) -> 1 | F47: =IF(Einzelergebnisse!D46=0,"",Einzelergebnisse!D46) -> 36 | G47: =IF(Einzelergebnisse!C46=0,"",Einzelergebnisse!C46) -> 83 | H47: =IF(Einzelergebnisse!F46=0,"",Einzelergebnisse!F46) -> 119 | J47: =IF(Einzelergebnisse!$A$45=0,"",IF(H47="",0,IF(H47=V47,0.5,IF(H47>V47,1,IF(AND(H47>0,V47=""),1,0))))) -> 0 | O47: =IF(übertrag!M7="",übertrag!N7,übertrag!M7) -> 07.91 | S47: =IF(Einzelergebnisse!H45=0,"",Einzelergebnisse!L46) -> 0 | T47: =IF(Einzelergebnisse!K46=0,"",Einzelergebnisse!K46) -> 45 | U47: =IF(Einzelergebnisse!J46=0,"",Einzelergebnisse!J46) -> 104 | V47: =IF(Einzelergebnisse!M46=0,"",Einzelergebnisse!M46) -> 149 | X47: =IF(Einzelergebnisse!$H$45=0,"",IF(V47="",0,IF(V47=H47,0.5,IF(V47>H47,1,IF(AND(V47>0,H47=""),1,0))))) -> 1
A48: Pa.-Nr./Mo.Ja | B48: Awsp. Vorname, Name | O48: Pa.-Nr./Mo.Ja | P48: Awsp. Vorname, Name
A49: =übertrag!O28 -> 0 | B49: =übertrag!Z14 -> 0 | E49: =IF(Einzelergebnisse!A45=0,"",Einzelergebnisse!E47) -> 0 | F49: =IF(Einzelergebnisse!D47=0,"",Einzelergebnisse!D47) -> 52 | G49: =IF(Einzelergebnisse!C47=0,"",Einzelergebnisse!C47) -> 110 | H49: =IF(Einzelergebnisse!F47=0,"",Einzelergebnisse!F47) -> 162 | J49: =IF(Einzelergebnisse!$A$45=0,"",IF(H49="",0,IF(H49=V49,0.5,IF(H49>V49,1,IF(AND(H49>0,V49=""),1,0))))) -> 1 | O49: =IF(übertrag!O13="",übertrag!P13,übertrag!O13) -> 0 | P49: =IF(übertrag!K13="",übertrag!L13,übertrag!K13) -> 0 | S49: =IF(Einzelergebnisse!H45=0,"",Einzelergebnisse!L47) -> 1 | T49: =IF(Einzelergebnisse!K47=0,"",Einzelergebnisse!K47) -> 53 | U49: =IF(Einzelergebnisse!J47=0,"",Einzelergebnisse!J47) -> 91 | V49: =IF(Einzelergebnisse!M47=0,"",Einzelergebnisse!M47) -> 144 | X49: =IF(Einzelergebnisse!$H$45=0,"",IF(V49="",0,IF(V49=H49,0.5,IF(V49>H49,1,IF(AND(V49>0,H49=""),1,0))))) -> 0
A50: =übertrag!M28 -> 00:00:00 | E50: =IF(Einzelergebnisse!A45=0,"",Einzelergebnisse!E48) -> 0 | F50: =IF(Einzelergebnisse!D48=0,"",Einzelergebnisse!D48) -> 63 | G50: =IF(Einzelergebnisse!C48=0,"",Einzelergebnisse!C48) -> 100 | H50: =IF(Einzelergebnisse!F48=0,"",Einzelergebnisse!F48) -> 163 | J50: =IF(Einzelergebnisse!$A$45=0,"",IF(H50="",0,IF(H50=V50,0.5,IF(H50>V50,1,IF(AND(H50>0,V50=""),1,0))))) -> 1 | O50: =IF(übertrag!M13="",übertrag!N13,übertrag!M13) -> 00:00:00 | S50: =IF(Einzelergebnisse!H45=0,"",Einzelergebnisse!L48) -> 4 | T50: =IF(Einzelergebnisse!K48=0,"",Einzelergebnisse!K48) -> 44 | U50: =IF(Einzelergebnisse!J48=0,"",Einzelergebnisse!J48) -> 91 | V50: =IF(Einzelergebnisse!M48=0,"",Einzelergebnisse!M48) -> 135 | X50: =IF(Einzelergebnisse!$H$45=0,"",IF(V50="",0,IF(V50=H50,0.5,IF(V50>H50,1,IF(AND(V50>0,H50=""),1,0))))) -> 0
E51: =IF(Einzelergebnisse!A45=0,"",SUM(E46:E50)) -> 1 | F51: =IF(Einzelergebnisse!A45=0,"",SUM(F46:F50)) -> 207 | G51: =IF(Einzelergebnisse!A45=0,"",SUM(G46:G50)) -> 389 | H51: =IF(Einzelergebnisse!A45=0,"",SUM(H46:H50)) -> 596 | J51: =IF(Einzelergebnisse!A45=0,"",SUM(J46:J47,J49:J50)) -> 3 | S51: =IF(Einzelergebnisse!H45=0,"",SUM(S46,S47,S49,S50)) -> 6 | T51: =IF(Einzelergebnisse!H45=0,"",SUM(T46,T47,T49,T50)) -> 184 | U51: =IF(Einzelergebnisse!H45=0,"",SUM(U46,U47,U49,U50)) -> 371 | V51: =IF(Einzelergebnisse!H45=0,"",SUM(V46,V47,V49,V50)) -> 555 | X51: =IF(Einzelergebnisse!H45=0,"",SUM(X46:X47,X49:X50)) -> 1
E52: gF | F52: gA | G52: gV | H52: gK | J52: SP | K52: MP | S52: gF | T52: gA | U52: gV | V52: gK | X52: SP | Y52: MP
E53: =IF(Einzelergebnisse!A5=0,"",SUM(E16,E23,E30,E37,E44,E51)) -> 12 | F53: =IF(Einzelergebnisse!A5=0,"",SUM(F16,F23,F30,F37,F44,F51)) -> 1147 | G53: =IF(Einzelergebnisse!A5=0,"",SUM(G16,G23,G30,G37,G44,G51)) -> 2267 | H53: =IF(Einzelergebnisse!A5=0,"",SUM(H16,H23,H30,H37,H44,H51)) -> 3414 | I53: =IF(Einzelergebnisse!#REF!=0,"",SUM(I16,I23,I37,I30,I44,I51)) ->  | J53: =IF(Einzelergebnisse!A5=0,"",SUM(J16,J23,J30,J37,J44,J51)) -> 8 | K53: =IF(Einzelergebnisse!A5=0,"",SUM(K11,K18,K25,K32,K39,K46)) -> 2 | L53: Endstand | S53: =IF(Einzelergebnisse!H5=0,"",SUM(S16,S23,S30,S37,S44,S51)) -> 12 | T53: =IF(Einzelergebnisse!H5=0,"",SUM(T16,T23,T30,T37,T44,T51)) -> 1300 | U53: =IF(Einzelergebnisse!H5=0,"",SUM(U16,U23,U30,U37,U44,U51)) -> 2254 | V53: =IF(Einzelergebnisse!H5=0,"",SUM(V16,V23,V30,V37,V44,V51)) -> 3554 | X53: =IF(Einzelergebnisse!H5=0,"",SUM(X16,X23,X30,X37,X44,X51)) -> 16 | Y53: =IF(Einzelergebnisse!H5=0,"",SUM(Y11,Y18,Y25,Y32,Y39,Y46)) -> 4
C54: Gesamt Kegel | D54: =IF(Einzelergebnisse!A5=0,"",SUM(H16,H23,H30,H37,H44,H51)) -> 3414 | E54: Kegel Punkte | J54: =IF(Einzelergebnisse!A5=0,"",IF(D54=0,0,IF(D54=R54,1,IF(D54>R54,2,0)))) -> 0 | L54: =IF(Einzelergebnisse!A5=0,"",SUM(K53,J54)) -> 2 | M54: : | N54: =IF(Einzelergebnisse!H5=0,"",SUM(X54,Y53)) -> 6 | Q54: Gesamt Kegel | R54: =IF(Einzelergebnisse!H5=0,"",SUM(V16,V23,V30,V37,V44,V51)) -> 3554 | S54: Kegel Punkte | X54: =IF(Einzelergebnisse!H5=0,"",IF(R54=0,0,IF(R54=D54,1,IF(R54>D54,2,0)))) -> 2
K55: Tabellenpunkte | L55: =IF(Einzelergebnisse!A5=0,"",IF(L54=0,0,IF(L54=N54,1,IF(L54>N54,2,0)))) -> 0 | M55: : | N55: =IF(Einzelergebnisse!A5=0,"",IF(N54=0,0,IF(N54=L54,1,IF(N54>L54,2,0)))) -> 2
B57: 1) | H57: Bahn/Kugelmaterial in Ordnung | I57: =IF(übertrag!Q21=TRUE,"x","") -> x | J57: ja | K57: =IF(übertrag!Q9=TRUE,"x","") ->  | L57: nein | R57: 4) | U57: Verletzung | V57: =IF(übertrag!Q24=TRUE,"x","") ->  | W57: ja | X57: =IF(übertrag!Q17=TRUE,"x","") -> x | Y57: nein
B58: 2) | H58: Pässe in Ordnung | I58: =IF(übertrag!Q22=TRUE,"x","") -> x | J58: ja | K58: =IF(übertrag!Q10=TRUE,"x","") ->  | L58: nein | R58: 5) | U58: Verwarnung | V58: =IF(übertrag!Q25=TRUE,"x","") -> x | W58: ja | X58: =IF(übertrag!Q18=TRUE,"x","") -> x | Y58: nein
B59: 3) | H59: Protest | I59: =IF(übertrag!Q23=TRUE,"x","") ->  | J59: ja | K59: =IF(übertrag!Q16=TRUE,"x","") -> x | L59: nein | R59: 6) | U59: Sonstiges | V59: =IF(übertrag!Q26=TRUE,"x","") ->  | W59: ja | X59: =IF(übertrag!Q19=TRUE,"x","") -> x | Y59: nein
H60: Schiedsrichter OK | I60: =IF(übertrag!Q27=TRUE,"x","") -> x | J60: ja | K60: =IF(übertrag!Q28=TRUE,"x","") ->  | L60: nein | P60: Anlagen | Q60: =IF(übertrag!Q20=TRUE,"x","") ->  | U60: Schiedsrichter OK | V60: =IF(übertrag!Q29=TRUE,"x","") -> x | W60: ja | X60: =IF(übertrag!Q30=TRUE,"x","") ->  | Y60: nein
B61: Bemerkung zu | C61: Meinunger Silvan 56. Wurf - Übertritt
A62: ab Wurf 61 Aumüller f. Schropp
B64: Heimmannschaft | K64: Schiedsrichter | L64: Schmidt Sabine Nr. 776 | S64: Gastmannschaft

Sheet Einzelergebnisse
A2: =DKB!D8 -> 1.SKK Gut Holz Zeil 1 | H2: =DKB!R8 -> Rot-Weiß Hirschau
A4: Name | B4: Bahn | C4: Volle | D4: Abr | E4: Fe | F4: Ges | H4: Name | I4: Bahn | J4: Volle | K4: Abr | L4: Fe | M4: Ges
A5: =DKB!B11 -> Holger Jahn | B5: 1 | C5: =Daten!C5 -> 96 | D5: =Daten!B5 -> 61 | E5: =Daten!A5 -> 1 | F5: =SUM(C5,D5) -> 157 | H5: =DKB!P11 -> Bastian Baumer | I5: 1 | J5: =Daten!C47 -> 97 | K5: =Daten!B47 -> 72 | L5: =Daten!A47 -> 0 | M5: =SUM(J5,K5) -> 169
B6: 2 | C6: =Daten!C6 -> 101 | D6: =Daten!B6 -> 42 | E6: =Daten!A6 -> 0 | F6: =SUM(C6,D6) -> 143 | I6: 2 | J6: =Daten!C48 -> 92 | K6: =Daten!B48 -> 63 | L6: =Daten!A48 -> 0 | M6: =SUM(J6,K6) -> 155
A7: =DKB!B14 -> 0 | B7: 3 | C7: =Daten!C7 -> 84 | D7: =Daten!B7 -> 54 | E7: =Daten!A7 -> 0 | F7: =SUM(C7,D7) -> 138 | H7: =DKB!P14 -> 0 | I7: 3 | J7: =Daten!C49 -> 88 | K7: =Daten!B49 -> 63 | L7: =Daten!A49 -> 0 | M7: =SUM(J7,K7) -> 151
B8: 4 | C8: =Daten!C8 -> 93 | D8: =Daten!B8 -> 53 | E8: =Daten!A8 -> 1 | F8: =SUM(C8,D8) -> 146 | I8: 4 | J8: =Daten!C50 -> 92 | K8: =Daten!B50 -> 35 | L8: =Daten!A50 -> 1 | M8: =SUM(J8,K8) -> 127
C9: =SUM(C5:C8) -> 374 | D9: =SUM(D5:D8) -> 210 | E9: =SUM(E5:E8) -> 2 | F9: =SUM(F5:F8) -> 584 | J9: =SUM(J5:J8) -> 369 | K9: =SUM(K5:K8) -> 233 | L9: =SUM(L5:L8) -> 1 | M9: =SUM(M5:M8) -> 602
A12: Name | B12: Bahn | C12: Volle | D12: Abr | E12: Fe | F12: Ges | H12: Name | I12: Bahn | J12: Volle | K12: Abr | L12: Fe | M12: Ges
A13: =DKB!B18 -> Silvan Meinunger | B13: 1 | C13: =Daten!C10 -> 103 | D13: =Daten!B10 -> 54 | E13: =Daten!A10 -> 0 | F13: =SUM(C13,D13) -> 157 | H13: =DKB!P18 -> Marcus Gevatter | I13: 1 | J13: =Daten!C52 -> 84 | K13: =Daten!B52 -> 49 | L13: =Daten!A52 -> 1 | M13: =SUM(J13,K13) -> 133
B14: 2 | C14: =Daten!C11 -> 96 | D14: =Daten!B11 -> 36 | E14: =Daten!A11 -> 1 | F14: =SUM(C14,D14) -> 132 | I14: 2 | J14: =Daten!C53 -> 90 | K14: =Daten!B53 -> 51 | L14: =Daten!A53 -> 1 | M14: =SUM(J14,K14) -> 141
A15: =DKB!B21 -> 0 | B15: 3 | C15: =Daten!C12 -> 103 | D15: =Daten!B12 -> 53 | E15: =Daten!A12 -> 0 | F15: =SUM(C15,D15) -> 156 | H15: =DKB!P21 -> 0 | I15: 3 | J15: =Daten!C54 -> 98 | K15: =Daten!B54 -> 61 | L15: =Daten!A54 -> 0 | M15: =SUM(J15,K15) -> 159
B16: 4 | C16: =Daten!C13 -> 98 | D16: =Daten!B13 -> 53 | E16: =Daten!A13 -> 0 | F16: =SUM(C16,D16) -> 151 | I16: 4 | J16: =Daten!C55 -> 82 | K16: =Daten!B55 -> 53 | L16: =Daten!A55 -> 1 | M16: =SUM(J16,K16) -> 135
C17: =SUM(C13:C16) -> 400 | D17: =SUM(D13:D16) -> 196 | E17: =SUM(E13:E16) -> 1 | F17: =SUM(F13:F16) -> 596 | J17: =SUM(J13:J16) -> 354 | K17: =SUM(K13:K16) -> 214 | L17: =SUM(L13:L16) -> 3 | M17: =SUM(M13:M16) -> 568
A20: Name | B20: Bahn | C20: Volle | D20: Abr | E20: Fe | F20: Ges | H20: Name | I20: Bahn | J20: Volle | K20: Abr | L20: Fe | M20: Ges
A21: =DKB!B25 -> Pascal Österling | B21: 1 | C21: =Daten!C15 -> 92 | D21: =Daten!B15 -> 50 | E21: =Daten!A15 -> 0 | F21: =SUM(C21,D21) -> 142 | H21: =DKB!P25 -> Thomas Immer | I21: 1 | J21: =Daten!C57 -> 91 | K21: =Daten!B57 -> 59 | L21: =Daten!A57 -> 0 | M21: =SUM(J21,K21) -> 150
B22: 2 | C22: =Daten!C16 -> 99 | D22: =Daten!B16 -> 53 | E22: =Daten!A16 -> 0 | F22: =SUM(C22,D22) -> 152 | I22: 2 | J22: =Daten!C58 -> 96 | K22: =Daten!B58 -> 54 | L22: =Daten!A58 -> 1 | M22: =SUM(J22,K22) -> 150
A23: =DKB!B28 -> 0 | B23: 3 | C23: =Daten!C17 -> 79 | D23: =Daten!B17 -> 45 | E23: =Daten!A17 -> 0 | F23: =SUM(C23,D23) -> 124 | H23: =DKB!P28 -> 0 | I23: 3 | J23: =Daten!C59 -> 100 | K23: =Daten!B59 -> 44 | L23: =Daten!A59 -> 0 | M23: =SUM(J23,K23) -> 144
B24: 4 | C24: =Daten!C18 -> 91 | D24: =Daten!B18 -> 43 | E24: =Daten!A18 -> 1 | F24: =SUM(C24,D24) -> 134 | I24: 4 | J24: =Daten!C60 -> 97 | K24: =Daten!B60 -> 44 | L24: =Daten!A60 -> 0 | M24: =SUM(J24,K24) -> 141
C25: =SUM(C21:C24) -> 361 | D25: =SUM(D21:D24) -> 191 | E25: =SUM(E21:E24) -> 1 | F25: =SUM(F21:F24) -> 552 | J25: =SUM(J21:J24) -> 384 | K25: =SUM(K21:K24) -> 201 | L25: =SUM(L21:L24) -> 1 | M25: =SUM(M21:M24) -> 585
A28: Name | B28: Bahn | C28: Volle | D28: Abr | E28: Fe | F28: Ges | H28: Name | I28: Bahn | J28: Volle | K28: Abr | L28: Fe | M28: Ges
A29: =DKB!B32 -> Olaf Pfaller | B29: 1 | C29: =Daten!C20 -> 96 | D29: =Daten!B20 -> 45 | E29: =Daten!A20 -> 0 | F29: =SUM(C29,D29) -> 141 | H29: =DKB!P32 -> Manuel Donhauser | I29: 1 | J29: =Daten!C62 -> 92 | K29: =Daten!B62 -> 59 | L29: =Daten!A62 -> 0 | M29: =SUM(J29,K29) -> 151
B30: 2 | C30: =Daten!C21 -> 87 | D30: =Daten!B21 -> 53 | E30: =Daten!A21 -> 0 | F30: =SUM(C30,D30) -> 140 | I30: 2 | J30: =Daten!C63 -> 107 | K30: =Daten!B63 -> 45 | L30: =Daten!A63 -> 0 | M30: =SUM(J30,K30) -> 152
A31: =DKB!B35 -> 0 | B31: 3 | C31: =Daten!C22 -> 102 | D31: =Daten!B22 -> 34 | E31: =Daten!A22 -> 0 | F31: =SUM(C31,D31) -> 136 | H31: =DKB!P35 -> 0 | I31: 3 | J31: =Daten!C64 -> 109 | K31: =Daten!B64 -> 87 | L31: =Daten!A64 -> 0 | M31: =SUM(J31,K31) -> 196
B32: 4 | C32: =Daten!C23 -> 100 | D32: =Daten!B23 -> 44 | E32: =Daten!A23 -> 0 | F32: =SUM(C32,D32) -> 144 | I32: 4 | J32: =Daten!C65 -> 102 | K32: =Daten!B65 -> 60 | L32: =Daten!A65 -> 0 | M32: =SUM(J32,K32) -> 162
C33: =SUM(C29:C32) -> 385 | D33: =SUM(D29:D32) -> 176 | E33: =SUM(E29:E32) -> 0 | F33: =SUM(F29:F32) -> 561 | J33: =SUM(J29:J32) -> 410 | K33: =SUM(K29:K32) -> 251 | L33: =SUM(L29:L32) -> 0 | M33: =SUM(M29:M32) -> 661
A36: Name | B36: Bahn | C36: Volle | D36: Abr | E36: Fe | F36: Ges | H36: Name | I36: Bahn | J36: Volle | K36: Abr | L36: Fe | M36: Ges
A37: =DKB!B39 -> Georg Schropp | B37: 1 | C37: =Daten!C25 -> 90 | D37: =Daten!B25 -> 45 | E37: =Daten!A25 -> 2 | F37: =SUM(C37,D37) -> 135 | H37: =DKB!P39 -> Daniel Rösch | I37: 1 | J37: =Daten!C67 -> 94 | K37: =Daten!B67 -> 42 | L37: =Daten!A67 -> 1 | M37: =SUM(J37,K37) -> 136
B38: 2 | C38: =Daten!C26 -> 87 | D38: =Daten!B26 -> 36 | E38: =Daten!A26 -> 3 | F38: =SUM(C38,D38) -> 123 | I38: 2 | J38: =Daten!C68 -> 92 | K38: =Daten!B68 -> 70 | L38: =Daten!A68 -> 0 | M38: =SUM(J38,K38) -> 162
A39: =DKB!B42 -> Andreas Aumüller | B39: 3 | C39: =Daten!C27 -> 102 | D39: =Daten!B27 -> 42 | E39: =Daten!A27 -> 1 | F39: =SUM(C39,D39) -> 144 | H39: =DKB!P42 -> 0 | I39: 3 | J39: =Daten!C69 -> 85 | K39: =Daten!B69 -> 54 | L39: =Daten!A69 -> 0 | M39: =SUM(J39,K39) -> 139
B40: 4 | C40: =Daten!C28 -> 79 | D40: =Daten!B28 -> 44 | E40: =Daten!A28 -> 1 | F40: =SUM(C40,D40) -> 123 | I40: 4 | J40: =Daten!C70 -> 95 | K40: =Daten!B70 -> 51 | L40: =Daten!A70 -> 0 | M40: =SUM(J40,K40) -> 146
C41: =SUM(C37:C40) -> 358 | D41: =SUM(D37:D40) -> 167 | E41: =SUM(E37:E40) -> 7 | F41: =SUM(F37:F40) -> 525 | J41: =SUM(J37:J40) -> 366 | K41: =SUM(K37:K40) -> 217 | L41: =SUM(L37:L40) -> 1 | M41: =SUM(M37:M40) -> 583
A44: Name | B44: Bahn | C44: Volle | D44: Abr | E44: Fe | F44: Ges | H44: Name | I44: Bahn | J44: Volle | K44: Abr | L44: Fe | M44: Ges
A45: =DKB!B46 -> Marco Endres | B45: 1 | C45: =Daten!C30 -> 96 | D45: =Daten!B30 -> 56 | E45: =Daten!A30 -> 0 | F45: =SUM(C45,D45) -> 152 | H45: =DKB!P46 -> Alexander Held | I45: 1 | J45: =Daten!C72 -> 85 | K45: =Daten!B72 -> 42 | L45: =Daten!A72 -> 1 | M45: =SUM(J45,K45) -> 127
B46: 2 | C46: =Daten!C31 -> 83 | D46: =Daten!B31 -> 36 | E46: =Daten!A31 -> 1 | F46: =SUM(C46,D46) -> 119 | I46: 2 | J46: =Daten!C73 -> 104 | K46: =Daten!B73 -> 45 | L46: =Daten!A73 -> 0 | M46: =SUM(J46,K46) -> 149
A47: =DKB!B49 -> 0 | B47: 3 | C47: =Daten!C32 -> 110 | D47: =Daten!B32 -> 52 | E47: =Daten!A32 -> 0 | F47: =SUM(C47,D47) -> 162 | H47: =DKB!P49 -> 0 | I47: 3 | J47: =Daten!C74 -> 91 | K47: =Daten!B74 -> 53 | L47: =Daten!A74 -> 1 | M47: =SUM(J47,K47) -> 144
B48: 4 | C48: =Daten!C33 -> 100 | D48: =Daten!B33 -> 63 | E48: =Daten!A33 -> 0 | F48: =SUM(C48,D48) -> 163 | I48: 4 | J48: =Daten!C75 -> 91 | K48: =Daten!B75 -> 44 | L48: =Daten!A75 -> 4 | M48: =SUM(J48,K48) -> 135
C49: =SUM(C45:C48) -> 389 | D49: =SUM(D45:D48) -> 207 | E49: =SUM(E45:E48) -> 1 | F49: =SUM(F45:F48) -> 596 | J49: =SUM(J45:J48) -> 371 | K49: =SUM(K45:K48) -> 184 | L49: =SUM(L45:L48) -> 6 | M49: =SUM(M45:M48) -> 555

Sheet MANNSCHAFTEN+SPIELER
A1: Gastmannschaften | O1: Heimmannschaft
A2: KLUB / Verein | C2: Mon/Jahr | E2: Paß- Nummer | G2: Vorname, Name | O2: KLUB / Verein | Q2: Mon/Jahr | S2: Paß- Nummer | U2: Vorname, Name
A3: =M2_Start -> Rot-Weiß Hirschau | B3: 1 | D3: 1 | F3: 1 | O3: =M1_Start -> 1.SKK Gut Holz Zeil 1 | P3: 1 | R3: 1 | T3: 1
A4: =$A$3 -> Rot-Weiß Hirschau | B4: 2 | C4: =TEXT(Daten!B46,"MM.JJ") -> 10.79 | D4: 2 | E4: =Daten!C46 -> 107246 | F4: 2 | G4: =_Sp21 -> Bastian Baumer | O4: =$O$3 -> 1.SKK Gut Holz Zeil 1 | P4: 2 | Q4: =TEXT(Daten!B4,"MM.JJ") -> 06.72 | R4: 2 | S4: =Daten!Pass11 -> 120763 | T4: 2 | U4: =_Sp11 -> Holger Jahn
A5: Rot-Weiß Hirschau | B5: 3 | C5: =TEXT(Daten!B51,"MM.JJ") -> 04.98 | D5: 3 | E5: =Daten!C51 -> 16270 | F5: 3 | G5: =_SP22 -> Marcus Gevatter | O5: 1.SKK Gut Holz Zeil 1 | P5: 3 | Q5: =TEXT(Daten!B9,"MM.JJ") -> 10.03 | R5: 3 | S5: =Daten!C9 -> 79060 | T5: 3 | U5: =_Sp12 -> Silvan Meinunger
A6: Rot-Weiß Hirschau | B6: 4 | C6: =TEXT(Daten!B56,"MM.JJ") -> 07.84 | D6: 4 | E6: =Daten!C56 -> 107563 | F6: 4 | G6: =_Sp23 -> Thomas Immer | O6: 1.SKK Gut Holz Zeil 1 | P6: 4 | Q6: =TEXT(Daten!B14,"MM.JJ") -> 06.00 | R6: 4 | S6: =Daten!C14 -> 29339 | T6: 4 | U6: =_Sp13 -> Pascal Österling
A7: Rot-Weiß Hirschau | B7: 5 | C7: =TEXT(Daten!B61,"MM.JJ") -> 09.96 | D7: 5 | E7: =Daten!C61 -> 107632 | F7: 5 | G7: =_Sp24 -> Manuel Donhauser | O7: 1.SKK Gut Holz Zeil 1 | P7: 5 | Q7: =TEXT(Daten!B19,"MM.JJ") -> 07.69 | R7: 5 | S7: =Daten!C19 -> 120769 | T7: 5 | U7: =_Sp14 -> Olaf Pfaller
A8: Rot-Weiß Hirschau | B8: 6 | C8: =TEXT(Daten!B66,"MM.JJ") -> 01.91 | D8: 6 | E8: =Daten!C66 -> 111231 | F8: 6 | G8: =_Sp25 -> Daniel Rösch | O8: 1.SKK Gut Holz Zeil 1 | P8: 6 | Q8: =TEXT(Daten!B24,"MM.JJ") -> 07.61 | R8: 6 | S8: =Daten!C24 -> 120774 | T8: 6 | U8: =_Sp15 -> Georg Schropp
A9: Rot-Weiß Hirschau | B9: 7 | C9: =TEXT(Daten!B71,"MM.JJ") -> 07.91 | D9: 7 | E9: =Daten!C71 -> 113989 | F9: 7 | G9: =_Sp26 -> Alexander Held | O9: 1.SKK Gut Holz Zeil 1 | P9: 7 | Q9: =TEXT(Daten!B29,"MM.JJ") -> 01.98 | R9: 7 | S9: =Daten!C29 -> 23647 | T9: 7 | U9: =_Sp16 -> Marco Endres
A10: Rot-Weiß Hirschau | B10: 8 | C10: =TEXT(Daten!B76,"MM.JJ") -> 09.94 | D10: 8 | E10: =Daten!C76 -> 107179 | F10: 8 | G10: =_ESP21 -> Sebastian Plößl | O10: 1.SKK Gut Holz Zeil 1 | P10: 8 | Q10: =TEXT(Daten!B34,"MM.JJ") -> 07.97 | R10: 8 | S10: =Daten!C34 -> 120812 | T10: 8 | U10: =_ESP11 -> Andreas Aumüller
A11: Rot-Weiß Hirschau | B11: 9 | C11: =TEXT(Daten!B81,"MM.JJ") -> 05.92 | D11: 9 | E11: =Daten!C81 -> 122251 | F11: 9 | G11: =_ESP22 -> Michael Plößl | O11: 1.SKK Gut Holz Zeil 1 | P11: 9 | Q11: 00:00:00 | R11: 9 | S11: =Daten!C39 -> 120752 | T11: 9 | U11: =_Esp12 -> Oliver Faber
A12: Rot-Weiß Hirschau | B12: 10 | D12: 10 | F12: 10 | O12: 1.SKK Gut Holz Zeil 1 | P12: 10 | R12: 10 | T12: 10 | U12: Hager Elke
A13: Rot-Weiß Hirschau | B13: 11 | D13: 11 | F13: 11 | O13: 1.SKK Gut Holz Zeil 1 | P13: 11 | R13: 11 | T13: 11
A14: Rot-Weiß Hirschau | B14: 12 | D14: 12 | F14: 12 | O14: 1.SKK Gut Holz Zeil 1 | P14: 12 | R14: 12 | T14: 12
A15: Rot-Weiß Hirschau | B15: 13 | D15: 13 | F15: 13 | H15: 1 | I15: X | J15: 1 | K15: eins | L15: 1 | M15: 1 | O15: 1.SKK Gut Holz Zeil 1 | P15: 13 | R15: 13 | T15: 13
A16: Rot-Weiß Hirschau | B16: 14 | D16: 14 | F16: 14 | O16: 1.SKK Gut Holz Zeil 1 | P16: 14 | R16: 14 | T16: 14
A17: Rot-Weiß Hirschau | B17: 15 | D17: 15 | F17: 15 | O17: 1.SKK Gut Holz Zeil 1 | P17: 15 | R17: 15 | T17: 15
A18: Rot-Weiß Hirschau | B18: 16 | D18: 16 | F18: 16 | O18: 1.SKK Gut Holz Zeil 1 | P18: 16 | R18: 16 | T18: 16
A19: Rot-Weiß Hirschau | B19: 17 | D19: 17 | F19: 17 | O19: 1.SKK Gut Holz Zeil 1 | P19: 17 | R19: 17 | T19: 17
A20: Rot-Weiß Hirschau | B20: 18 | D20: 18 | F20: 18 | O20: 1.SKK Gut Holz Zeil 1 | P20: 18 | R20: 18 | T20: 18
A21: Rot-Weiß Hirschau | B21: 19 | D21: 19 | F21: 19 | O21: 1.SKK Gut Holz Zeil 1 | P21: 19 | R21: 19 | T21: 19
A22: Rot-Weiß Hirschau | B22: 20 | D22: 20 | F22: 20 | O22: 1.SKK Gut Holz Zeil 1 | P22: 20 | R22: 20 | T22: 20
A23: Rot-Weiß Hirschau | B23: 21 | D23: 21 | F23: 21 | O23: 1.SKK Gut Holz Zeil 1 | P23: 21 | R23: 21 | T23: 21
A24: Gastmannschaft 2 | B24: 1 | D24: 1 | F24: 1 | H24: 2 | J24: 2 | K24: zwei | L24: 2 | M24: 2 | O24: 1.SKK Gut Holz Zeil 1 | P24: 22 | R24: 22 | T24: 22
A25: =$A$24 -> Gastmannschaft 2 | B25: 2 | D25: 2 | F25: 2 | J25: 3 | K25: drei | L25: 3 | M25: 3 | O25: 1.SKK Gut Holz Zeil 1 | P25: 23 | R25: 23 | T25: 23
A26: Gastmannschaft 2 | B26: 3 | D26: 3 | F26: 3 | J26: 4 | K26: vier | L26: 4 | M26: 4 | O26: 1.SKK Gut Holz Zeil 1 | P26: 24 | R26: 24 | T26: 24
A27: Gastmannschaft 2 | B27: 4 | D27: 4 | F27: 4 | J27: 5 | K27: fünf | L27: 5 | M27: 5 | O27: 1.SKK Gut Holz Zeil 1 | P27: 25 | R27: 25 | T27: 25
A28: Gastmannschaft 2 | B28: 5 | D28: 5 | F28: 5 | J28: 6 | K28: sechs | L28: 6 | M28: 6 | O28: 1.SKK Gut Holz Zeil 1 | P28: 26 | R28: 26 | T28: 26
A29: Gastmannschaft 2 | B29: 6 | D29: 6 | F29: 6 | J29: 7 | K29: sieben | L29: 7 | M29: E | O29: 1.SKK Gut Holz Zeil 1 | P29: 27 | R29: 27 | T29: 27
A30: Gastmannschaft 2 | B30: 7 | D30: 7 | F30: 7 | J30: 8 | K30: acht | L30: 8 | M30: A | O30: 1.SKK Gut Holz Zeil 1 | P30: 28 | R30: 28 | T30: 28
A31: Gastmannschaft 2 | B31: 8 | D31: 8 | F31: 8 | J31: 9 | K31: neun | L31: 9 | O31: 1.SKK Gut Holz Zeil 1 | P31: 29 | R31: 29 | T31: 29
A32: Gastmannschaft 2 | B32: 9 | D32: 9 | F32: 9 | J32: 10 | K32: zehn | O32: 1.SKK Gut Holz Zeil 1 | P32: 30 | R32: 30 | T32: 30
A33: Gastmannschaft 2 | B33: 10 | D33: 10 | F33: 10 | J33: 11 | K33: elf | O33: 1.SKK Gut Holz Zeil 1 | P33: 31 | R33: 31 | T33: 31
A34: Gastmannschaft 2 | B34: 11 | D34: 11 | F34: 11 | J34: 12 | K34: zwölf | O34: 1.SKK Gut Holz Zeil 1 | P34: 32 | R34: 32 | T34: 32
A35: Gastmannschaft 2 | B35: 12 | D35: 12 | F35: 12 | J35: 13 | O35: 1.SKK Gut Holz Zeil 1 | P35: 33 | R35: 33 | T35: 33
A36: Gastmannschaft 2 | B36: 13 | D36: 13 | F36: 13 | O36: 1.SKK Gut Holz Zeil 1 | P36: 34 | R36: 34 | T36: 34
A37: Gastmannschaft 2 | B37: 14 | D37: 14 | F37: 14 | O37: 1.SKK Gut Holz Zeil 1 | P37: 35 | R37: 35 | T37: 35
A38: Gastmannschaft 2 | B38: 15 | D38: 15 | F38: 15 | O38: 1.SKK Gut Holz Zeil 1 | P38: 36 | R38: 36 | T38: 36
A39: Gastmannschaft 2 | B39: 16 | D39: 16 | F39: 16 | O39: 1.SKK Gut Holz Zeil 1 | P39: 37 | R39: 37 | T39: 37
A40: Gastmannschaft 2 | B40: 17 | D40: 17 | F40: 17 | O40: 1.SKK Gut Holz Zeil 1 | P40: 38 | R40: 38 | T40: 38
A41: Gastmannschaft 2 | B41: 18 | D41: 18 | F41: 18 | O41: 1.SKK Gut Holz Zeil 1 | P41: 39 | R41: 39 | T41: 39
A42: Gastmannschaft 2 | B42: 19 | D42: 19 | F42: 19 | O42: 1.SKK Gut Holz Zeil 1 | P42: 40 | R42: 40 | T42: 40
A43: Gastmannschaft 2 | B43: 20 | D43: 20 | F43: 20 | O43: 1.SKK Gut Holz Zeil 1 | P43: 41 | R43: 41 | T43: 41
A44: Gastmannschaft 2 | B44: 21 | D44: 21 | F44: 21
A45: Gastmannschaft 3 | B45: 1 | D45: 1 | F45: 1
A46: =$A$45 -> Gastmannschaft 3 | B46: 2 | D46: 2 | F46: 2
A47: Gastmannschaft 3 | B47: 3 | D47: 3 | F47: 3
A48: Gastmannschaft 3 | B48: 4 | D48: 4 | F48: 4
A49: Gastmannschaft 3 | B49: 5 | D49: 5 | F49: 5
A50: Gastmannschaft 3 | B50: 6 | D50: 6 | F50: 6
A51: Gastmannschaft 3 | B51: 7 | D51: 7 | F51: 7
A52: Gastmannschaft 3 | B52: 8 | D52: 8 | F52: 8
A53: Gastmannschaft 3 | B53: 9 | D53: 9 | F53: 9
A54: Gastmannschaft 3 | B54: 10 | D54: 10 | F54: 10
A55: Gastmannschaft 3 | B55: 11 | D55: 11 | F55: 11
A56: Gastmannschaft 3 | B56: 12 | D56: 12 | F56: 12
A57: Gastmannschaft 3 | B57: 13 | D57: 13 | F57: 13
A58: Gastmannschaft 3 | B58: 14 | D58: 14 | F58: 14
A59: Gastmannschaft 3 | B59: 15 | D59: 15 | F59: 15
A60: Gastmannschaft 3 | B60: 16 | D60: 16 | F60: 16
A61: Gastmannschaft 3 | B61: 17 | D61: 17 | F61: 17
A62: Gastmannschaft 3 | B62: 18 | D62: 18 | F62: 18
A63: Gastmannschaft 3 | B63: 19 | D63: 19 | F63: 19
A64: Gastmannschaft 3 | B64: 20 | D64: 20 | F64: 20
A65: Gastmannschaft 3 | B65: 21 | D65: 21 | F65: 21
A66: Gastmannschaft 4 | B66: 1 | D66: 1 | F66: 1
A67: =$A$66 -> Gastmannschaft 4 | B67: 2 | D67: 2 | F67: 2
A68: Gastmannschaft 4 | B68: 3 | D68: 3 | F68: 3
A69: Gastmannschaft 4 | B69: 4 | D69: 4 | F69: 4
A70: Gastmannschaft 4 | B70: 5 | D70: 5 | F70: 5
A71: Gastmannschaft 4 | B71: 6 | D71: 6 | F71: 6
A72: Gastmannschaft 4 | B72: 7 | D72: 7 | F72: 7
A73: Gastmannschaft 4 | B73: 8 | D73: 8 | F73: 8
A74: Gastmannschaft 4 | B74: 9 | D74: 9 | F74: 9
A75: Gastmannschaft 4 | B75: 10 | D75: 10 | F75: 10
A76: Gastmannschaft 4 | B76: 11 | D76: 11 | F76: 11
A77: Gastmannschaft 4 | B77: 12 | D77: 12 | F77: 12
A78: Gastmannschaft 4 | B78: 13 | D78: 13 | F78: 13
A79: Gastmannschaft 4 | B79: 14 | D79: 14 | F79: 14
A80: Gastmannschaft 4 | B80: 15 | D80: 15 | F80: 15
A81: Gastmannschaft 4 | B81: 16 | D81: 16 | F81: 16
A82: Gastmannschaft 4 | B82: 17 | D82: 17 | F82: 17
A83: Gastmannschaft 4 | B83: 18 | D83: 18 | F83: 18
A84: Gastmannschaft 4 | B84: 19 | D84: 19 | F84: 19
A85: Gastmannschaft 4 | B85: 20 | D85: 20 | F85: 20
A86: Gastmannschaft 4 | B86: 21 | D86: 21 | F86: 21
A87: Gastmannschaft 5 | B87: 1 | D87: 1 | F87: 1
A88: =$A$87 -> Gastmannschaft 5 | B88: 2 | D88: 2 | F88: 2 | H88: Gastmannschaft 05 2 | I88: Gastmannschaft 05 3 | J88: Gastmannschaft 05 4 | K88: Gastmannschaft 05 5 | L88: Gastmannschaft 05 6 | M88: Gastmannschaft 05 7
A89: Gastmannschaft 5 | B89: 3 | D89: 3 | F89: 3
A90: Gastmannschaft 5 | B90: 4 | D90: 4 | F90: 4
A91: Gastmannschaft 5 | B91: 5 | D91: 5 | F91: 5
A92: Gastmannschaft 5 | B92: 6 | D92: 6 | F92: 6
A93: Gastmannschaft 5 | B93: 7 | D93: 7 | F93: 7
A94: Gastmannschaft 5 | B94: 8 | D94: 8 | F94: 8
A95: Gastmannschaft 5 | B95: 9 | D95: 9 | F95: 9
A96: Gastmannschaft 5 | B96: 10 | D96: 10 | F96: 10
A97: Gastmannschaft 5 | B97: 11 | D97: 11 | F97: 11
A98: Gastmannschaft 5 | B98: 12 | D98: 12 | F98: 12
A99: Gastmannschaft 5 | B99: 13 | D99: 13 | F99: 13
A100: Gastmannschaft 5 | B100: 14 | D100: 14 | F100: 14
A101: Gastmannschaft 5 | B101: 15 | D101: 15 | F101: 15
A102: Gastmannschaft 5 | B102: 16 | D102: 16 | F102: 16
A103: Gastmannschaft 5 | B103: 17 | D103: 17 | F103: 17
A104: Gastmannschaft 5 | B104: 18 | D104: 18 | F104: 18
A105: Gastmannschaft 5 | B105: 19 | D105: 19 | F105: 19
A106: Gastmannschaft 5 | B106: 20 | D106: 20 | F106: 20
A107: Gastmannschaft 5 | B107: 21 | D107: 21 | F107: 21
A108: Gastmannschaft 6 | B108: 1 | D108: 1 | F108: 1
A109: =$A$108 -> Gastmannschaft 6 | B109: 2 | D109: 2 | F109: 2
A110: Gastmannschaft 6 | B110: 3 | D110: 3 | F110: 3
A111: Gastmannschaft 6 | B111: 4 | D111: 4 | F111: 4
A112: Gastmannschaft 6 | B112: 5 | D112: 5 | F112: 5
A113: Gastmannschaft 6 | B113: 6 | D113: 6 | F113: 6
A114: Gastmannschaft 6 | B114: 7 | D114: 7 | F114: 7
A115: Gastmannschaft 6 | B115: 8 | D115: 8 | F115: 8
A116: Gastmannschaft 6 | B116: 9 | D116: 9 | F116: 9
A117: Gastmannschaft 6 | B117: 10 | D117: 10 | F117: 10
A118: Gastmannschaft 6 | B118: 11 | D118: 11 | F118: 11
A119: Gastmannschaft 6 | B119: 12 | D119: 12 | F119: 12
A120: Gastmannschaft 6 | B120: 13 | D120: 13 | F120: 13
A121: Gastmannschaft 6 | B121: 14 | D121: 14 | F121: 14
A122: Gastmannschaft 6 | B122: 15 | D122: 15 | F122: 15
A123: Gastmannschaft 6 | B123: 16 | D123: 16 | F123: 16
A124: Gastmannschaft 6 | B124: 17 | D124: 17 | F124: 17
A125: Gastmannschaft 6 | B125: 18 | D125: 18 | F125: 18
A126: Gastmannschaft 6 | B126: 19 | D126: 19 | F126: 19
A127: Gastmannschaft 6 | B127: 20 | D127: 20 | F127: 20
A128: Gastmannschaft 6 | B128: 21 | D128: 21 | F128: 21
A129: Gastmannschaft 7 | B129: 1 | D129: 1 | F129: 1
A130: =$A$129 -> Gastmannschaft 7 | B130: 2 | D130: 2 | F130: 2
A131: Gastmannschaft 7 | B131: 3 | D131: 3 | F131: 3
A132: Gastmannschaft 7 | B132: 4 | D132: 4 | F132: 4
A133: Gastmannschaft 7 | B133: 5 | D133: 5 | F133: 5
A134: Gastmannschaft 7 | B134: 6 | D134: 6 | F134: 6
A135: Gastmannschaft 7 | B135: 7 | D135: 7 | F135: 7
A136: Gastmannschaft 7 | B136: 8 | D136: 8 | F136: 8
A137: Gastmannschaft 7 | B137: 9 | D137: 9 | F137: 9
A138: Gastmannschaft 7 | B138: 10 | D138: 10 | F138: 10
A139: Gastmannschaft 7 | B139: 11 | D139: 11 | F139: 11
A140: Gastmannschaft 7 | B140: 12 | D140: 12 | F140: 12
A141: Gastmannschaft 7 | B141: 13 | D141: 13 | F141: 13
A142: Gastmannschaft 7 | B142: 14 | D142: 14 | F142: 14
A143: Gastmannschaft 7 | B143: 15 | D143: 15 | F143: 15
A144: Gastmannschaft 7 | B144: 16 | D144: 16 | F144: 16
A145: Gastmannschaft 7 | B145: 17 | D145: 17 | F145: 17
A146: Gastmannschaft 7 | B146: 18 | D146: 18 | F146: 18
A147: Gastmannschaft 7 | B147: 19 | D147: 19 | F147: 19
A148: Gastmannschaft 7 | B148: 20 | D148: 20 | F148: 20
A149: Gastmannschaft 7 | B149: 21 | D149: 21 | F149: 21
A150: Gastmannschaft 8 | B150: 1 | D150: 1 | F150: 1
A151: =$A$150 -> Gastmannschaft 8 | B151: 2 | D151: 2 | F151: 2
A152: Gastmannschaft 8 | B152: 3 | D152: 3 | F152: 3
A153: Gastmannschaft 8 | B153: 4 | D153: 4 | F153: 4
A154: Gastmannschaft 8 | B154: 5 | D154: 5 | F154: 5
A155: Gastmannschaft 8 | B155: 6 | D155: 6 | F155: 6
A156: Gastmannschaft 8 | B156: 7 | D156: 7 | F156: 7
A157: Gastmannschaft 8 | B157: 8 | D157: 8 | F157: 8
A158: Gastmannschaft 8 | B158: 9 | D158: 9 | F158: 9
A159: Gastmannschaft 8 | B159: 10 | D159: 10 | F159: 10
A160: Gastmannschaft 8 | B160: 11 | D160: 11 | F160: 11
A161: Gastmannschaft 8 | B161: 12 | D161: 12 | F161: 12
A162: Gastmannschaft 8 | B162: 13 | D162: 13 | F162: 13
A163: Gastmannschaft 8 | B163: 14 | D163: 14 | F163: 14
A164: Gastmannschaft 8 | B164: 15 | D164: 15 | F164: 15
A165: Gastmannschaft 8 | B165: 16 | D165: 16 | F165: 16
A166: Gastmannschaft 8 | B166: 17 | D166: 17 | F166: 17
A167: Gastmannschaft 8 | B167: 18 | D167: 18 | F167: 18
A168: Gastmannschaft 8 | B168: 19 | D168: 19 | F168: 19
A169: Gastmannschaft 8 | B169: 20 | D169: 20 | F169: 20
A170: Gastmannschaft 8 | B170: 21 | D170: 21 | F170: 21
A171: Gastmannschaft 9 | B171: 1 | D171: 1 | F171: 1
A172: =$A$171 -> Gastmannschaft 9 | B172: 2 | D172: 2 | F172: 2
A173: Gastmannschaft 9 | B173: 3 | D173: 3 | F173: 3
A174: Gastmannschaft 9 | B174: 4 | D174: 4 | F174: 4
A175: Gastmannschaft 9 | B175: 5 | D175: 5 | F175: 5
A176: Gastmannschaft 9 | B176: 6 | D176: 6 | F176: 6
A177: Gastmannschaft 9 | B177: 7 | D177: 7 | F177: 7
A178: Gastmannschaft 9 | B178: 8 | D178: 8 | F178: 8
A179: Gastmannschaft 9 | B179: 9 | D179: 9 | F179: 9
A180: Gastmannschaft 9 | B180: 10 | D180: 10 | F180: 10
A181: Gastmannschaft 9 | B181: 11 | D181: 11 | F181: 11
A182: Gastmannschaft 9 | B182: 12 | D182: 12 | F182: 12
A183: Gastmannschaft 9 | B183: 13 | D183: 13 | F183: 13
A184: Gastmannschaft 9 | B184: 14 | D184: 14 | F184: 14
A185: Gastmannschaft 9 | B185: 15 | D185: 15 | F185: 15
A186: Gastmannschaft 9 | B186: 16 | D186: 16 | F186: 16
A187: Gastmannschaft 9 | B187: 17 | D187: 17 | F187: 17
A188: Gastmannschaft 9 | B188: 18 | D188: 18 | F188: 18
A189: Gastmannschaft 9 | B189: 19 | D189: 19 | F189: 19
A190: Gastmannschaft 9 | B190: 20 | D190: 20 | F190: 20
A191: Gastmannschaft 9 | B191: 21 | D191: 21 | F191: 21
A192: Gastmannschaft 10 | B192: 1 | D192: 1 | F192: 1
A193: =$A$192 -> Gastmannschaft 10 | B193: 2 | D193: 2 | F193: 2
A194: Gastmannschaft 10 | B194: 3 | D194: 3 | F194: 3
A195: Gastmannschaft 10 | B195: 4 | D195: 4 | F195: 4
A196: Gastmannschaft 10 | B196: 5 | D196: 5 | F196: 5
A197: Gastmannschaft 10 | B197: 6 | D197: 6 | F197: 6
A198: Gastmannschaft 10 | B198: 7 | D198: 7 | F198: 7
A199: Gastmannschaft 10 | B199: 8 | D199: 8 | F199: 8
A200: Gastmannschaft 10 | B200: 9 | D200: 9 | F200: 9
... 33 more rows

Sheet Daten
A1: Zeil 1 - Hirschau 22.1.22 | B1: Zeil am Main | C1: Zeiler EssZimmer | E1: 0 | F1: 0 | J1: 22.1.2022, 12.59 Uhr | K1: 22.1.2022, 17.00 Uhr
A3: 1.SKK Gut Holz Zeil 1 | B3: Olaf Pfaller | D3: 0 | F3: 0 | G3: 720 | H3: 3414 | I3: 12 | J3: 2267 | K3: 1147 | L3: 0 | M3: 0 | N3: 0 | O3: 1 | P3: 59 | Q3: 32 | R3: 2
A4: Holger Jahn | B4: 06.72 | C4: 120763 | D4: 0 | E4: 2 | F4: 210 | G4: 0 | H4: 0 | I4: 0 | J4: 374 | K4: 584 | L4: 0 | M4: 9 | N4: 10 | O4: 1 | P4: 0 | Q4: 0
A5: 1 | B5: 61 | C5: 96 | D5: 157 | E5: 0
A6: 0 | B6: 42 | C6: 101 | D6: 143 | E6: 0
A7: 0 | B7: 54 | C7: 84 | D7: 138 | E7: 0
A8: 1 | B8: 53 | C8: 93 | D8: 146 | E8: 0
A9: Silvan Meinunger | B9: 25.10.2003 | C9: 79060 | D9: 0 | E9: 1 | F9: 196 | G9: 0 | H9: 0 | I9: 0 | J9: 400 | K9: 596 | L9: 1 | M9: 14 | N9: 5 | O9: 2 | P9: 0 | Q9: 0
A10: 0 | B10: 54 | C10: 103 | D10: 157 | E10: 0
A11: 1 | B11: 36 | C11: 96 | D11: 132 | E11: 1
A12: 0 | B12: 53 | C12: 103 | D12: 156 | E12: 1
A13: 0 | B13: 53 | C13: 98 | D13: 151 | E13: 1
A14: Pascal Österling | B14: 06.00 | C14: 29339 | D14: 0 | E14: 1 | F14: 191 | G14: 0 | H14: 0 | I14: 0 | J14: 361 | K14: 552 | L14: 0 | M14: 7 | N14: 4 | O14: 1 | P14: 0 | Q14: 0
A15: 0 | B15: 50 | C15: 92 | D15: 142 | E15: 0
A16: 0 | B16: 53 | C16: 99 | D16: 152 | E16: 0
A17: 0 | B17: 45 | C17: 79 | D17: 124 | E17: 0
A18: 1 | B18: 43 | C18: 91 | D18: 134 | E18: 0
A19: Olaf Pfaller | B19: 07.69 | C19: 120769 | D19: 0 | E19: 0 | F19: 176 | G19: 0 | H19: 0 | I19: 0 | J19: 385 | K19: 561 | L19: 0 | M19: 9 | N19: 4 | O19: 0 | P19: 0 | Q19: 0
A20: 0 | B20: 45 | C20: 96 | D20: 141 | E20: 0
A21: 0 | B21: 53 | C21: 87 | D21: 140 | E21: 0
A22: 0 | B22: 34 | C22: 102 | D22: 136 | E22: 0
A23: 0 | B23: 44 | C23: 100 | D23: 144 | E23: 0
A24: Georg Schropp | B24: 07.61 | C24: 120774 | D24: 0 | E24: 7 | F24: 167 | G24: 0 | H24: 0 | I24: 0 | J24: 358 | K24: 525 | L24: 0 | M24: 5 | N24: 4 | O24: 1 | P24: 0 | Q24: 0
A25: 2 | B25: 45 | C25: 90 | D25: 135 | E25: 0
A26: 3 | B26: 36 | C26: 87 | D26: 123 | E26: 0
A27: 1 | B27: 42 | C27: 102 | D27: 144 | E27: 0
A28: 1 | B28: 44 | C28: 79 | D28: 123 | E28: 0
A29: Marco Endres | B29: 01.98 | C29: 23647 | D29: 0 | E29: 1 | F29: 207 | G29: 0 | H29: 0 | I29: 0 | J29: 389 | K29: 596 | L29: 0 | M29: 15 | N29: 5 | O29: 3 | P29: 0 | Q29: 0
A30: 0 | B30: 56 | C30: 96 | D30: 152 | E30: 0
A31: 1 | B31: 36 | C31: 83 | D31: 119 | E31: 0
A32: 0 | B32: 52 | C32: 110 | D32: 162 | E32: 0
A33: 0 | B33: 63 | C33: 100 | D33: 163 | E33: 0
A34: Andreas Aumüller | B34: 07.97 | C34: 120812 | D34: 0 | E34: 0 | F34: 0 | G34: 0 | H34: 0 | I34: 0 | J34: 0 | K34: 0 | L34: 0 | M34: 0 | N34: 0 | O34: 0 | P34: 0 | Q34: 0
A39: Oliver Faber | B39: 1981-04-01 | C39: 120752 | D39: 0 | E39: 0 | F39: 0 | G39: 0 | H39: 0 | I39: 0 | J39: 0 | K39: 0 | L39: 0 | M39: 0 | N39: 0 | O39: 0 | P39: 0 | Q39: 0
A45: Rot-Weiß Hirschau | D45: 0 | F45: 0 | G45: 720 | H45: 3554 | I45: 12 | J45: 2254 | K45: 1300 | L45: 0 | M45: 0 | N45: 0 | O45: 0 | P45: 72 | Q45: 28 | R45: 6
A46: Bastian Baumer | B46: 10.79 | C46: 107246 | D46: 0 | E46: 1 | F46: 233 | G46: 0 | H46: 0 | I46: 0 | J46: 369 | K46: 602 | L46: 0 | M46: 9 | N46: 3 | O46: 3 | P46: 0 | Q46: 0
A47: 0 | B47: 72 | C47: 97 | D47: 169 | E47: 0
A48: 0 | B48: 63 | C48: 92 | D48: 155 | E48: 0
A49: 0 | B49: 63 | C49: 88 | D49: 151 | E49: 0
A50: 1 | B50: 35 | C50: 92 | D50: 127 | E50: 0
A51: Marcus Gevatter | B51: 04.98 | C51: 16270 | D51: 0 | E51: 3 | F51: 214 | G51: 0 | H51: 0 | I51: 0 | J51: 354 | K51: 568 | L51: 0 | M51: 12 | N51: 7 | O51: 2 | P51: 0 | Q51: 0
A52: 1 | B52: 49 | C52: 84 | D52: 133 | E52: 0
A53: 1 | B53: 51 | C53: 90 | D53: 141 | E53: 0
A54: 0 | B54: 61 | C54: 98 | D54: 159 | E54: 0
A55: 1 | B55: 53 | C55: 82 | D55: 135 | E55: 0
A56: Thomas Immer | B56: 07.84 | C56: 107563 | D56: 0 | E56: 1 | F56: 201 | G56: 0 | H56: 0 | I56: 0 | J56: 384 | K56: 585 | L56: 0 | M56: 10 | N56: 2 | O56: 3 | P56: 0 | Q56: 0
A57: 0 | B57: 59 | C57: 91 | D57: 150 | E57: 0
A58: 1 | B58: 54 | C58: 96 | D58: 150 | E58: 0
A59: 0 | B59: 44 | C59: 100 | D59: 144 | E59: 0
A60: 0 | B60: 44 | C60: 97 | D60: 141 | E60: 0
A61: Manuel Donhauser | B61: 09.96 | C61: 107632 | D61: 0 | E61: 0 | F61: 251 | G61: 0 | H61: 0 | I61: 0 | J61: 410 | K61: 661 | L61: 0 | M61: 21 | N61: 5 | O61: 4 | P61: 0 | Q61: 0
A62: 0 | B62: 59 | C62: 92 | D62: 151 | E62: 0
A63: 0 | B63: 45 | C63: 107 | D63: 152 | E63: 0
A64: 0 | B64: 87 | C64: 109 | D64: 196 | E64: 0
A65: 0 | B65: 60 | C65: 102 | D65: 162 | E65: 0
A66: Daniel Rösch | B66: 01.91 | C66: 111231 | D66: 0 | E66: 1 | F66: 217 | G66: 0 | H66: 0 | I66: 0 | J66: 366 | K66: 583 | L66: 0 | M66: 12 | N66: 4 | O66: 3 | P66: 0 | Q66: 0
A67: 1 | B67: 42 | C67: 94 | D67: 136 | E67: 0
A68: 0 | B68: 70 | C68: 92 | D68: 162 | E68: 0
A69: 0 | B69: 54 | C69: 85 | D69: 139 | E69: 0
A70: 0 | B70: 51 | C70: 95 | D70: 146 | E70: 0
A71: Alexander Held | B71: 07.91 | C71: 113989 | D71: 0 | E71: 6 | F71: 184 | G71: 0 | H71: 0 | I71: 0 | J71: 371 | K71: 555 | L71: 0 | M71: 8 | N71: 7 | O71: 1 | P71: 0 | Q71: 0
A72: 1 | B72: 42 | C72: 85 | D72: 127 | E72: 0
A73: 0 | B73: 45 | C73: 104 | D73: 149 | E73: 0
A74: 1 | B74: 53 | C74: 91 | D74: 144 | E74: 0
A75: 4 | B75: 44 | C75: 91 | D75: 135 | E75: 0
A76: Sebastian Plößl | B76: 09.94 | C76: 107179 | D76: 0 | E76: 0 | F76: 0 | G76: 0 | H76: 0 | I76: 0 | J76: 0 | K76: 0 | L76: 0 | M76: 0 | N76: 0 | O76: 0 | P76: 0 | Q76: 0
A81: Michael Plößl | B81: 05.92 | C81: 122251 | D81: 0 | E81: 0 | F81: 0 | G81: 0 | H81: 0 | I81: 0 | J81: 0 | K81: 0 | L81: 0 | M81: 0 | N81: 0 | O81: 0 | P81: 0 | Q81: 0

Sheet Anleitung
A1: Anleitung
A3: 1. | B3: Spieldaten aus dem Controlcenter exportieren.
A4: 2. | B4: Spieldaten in "Daten" in Zelle "A1" einfügen.
A5: 3. | B5: Grunddaten in "DKB" anpassen:
B6: - über Button "Eingabe" Angaben eingeben
B7: - Ersatzspieler über die Buttons Heim- u. Auswärtsmannschaft zuordnen
B8: - Datum, Spielbeginn u. Spielende manuell eingeben
B9: - Bemerkungen im dafür vorgesehenen Feld eintippen
B12: Keine Eintragungen in den Tabellenblättern "Einzelergebnisse" u. "MANNSCHAFTEN+SPIELER" machen!
B14: Die Reihenfolge der Tabellenblätter darf nicht verändert werden!

Sheet übertrag (hidden)
K1: Spieler 1 - 6 | L1: Spieler 7 - 12 | M1: geb.jahr 1 - 6 | N1: geb.jahr 7 - 12 - 6 | O1: paß.Nr 1 - 6 | P1: paß.Nr 7 - 12 | Q1: Eingane der Kreuze | V1: Gastmannschaft | X1: Heim | AE1: Spieltag
A2: 13 | B2: 9 | C2: 9 | D2: 13 | F2: 4 | H2: 1 | I2: 2 | K2: =IF(übertrag!$H$2=1,VLOOKUP(übertrag!I2,einsü,2,),IF($H$2=2,VLOOKUP(übertrag!I2,zweiü,2,),IF($H$2=3,VLOOKUP(übertrag!I2,dreiü,2,),IF($H$2=4,VLOOKUP(übertrag!I2,vierü,2,),IF($H$2=5,VLOOKUP(übertrag!I2,fünfü,2,),IF($H$2=6,VLOOKUP(übertrag!I2,sechsü,2,),"")))))) -> Bastian Baumer | L2: =IF(übertrag!$H$2=7,VLOOKUP(übertrag!I2,siebenü,2,),IF($H$2=8,VLOOKUP(übertrag!I2,achtü,2,),IF($H$2=9,VLOOKUP(übertrag!I2,neunü,2,),IF($H$2=10,VLOOKUP(übertrag!I2,zehnü,2,),IF($H$2=11,VLOOKUP(übertrag!I2,elfü,2,),IF($H$2=12,VLOOKUP(übertrag!I2,Heimü,2,),"")))))) ->  | M2: =IF(übertrag!$H$2=1,VLOOKUP(übertrag!I2,_jhg1,2,),IF($H$2=2,VLOOKUP(übertrag!I2,_jhg2,2,),IF($H$2=3,VLOOKUP(übertrag!I2,_jhg3,2,),IF($H$2=4,VLOOKUP(übertrag!I2,_jhg4,2,),IF($H$2=5,VLOOKUP(übertrag!I2,_jhg5,2,),IF($H$2=6,VLOOKUP(übertrag!I2,_jhg6,2,),"")))))) -> 10.79 | N2: =IF(übertrag!$H$2=7,VLOOKUP(übertrag!I2,_jhg7,2,),IF($H$2=8,VLOOKUP(übertrag!I2,_jhg8,2,),IF($H$2=9,VLOOKUP(übertrag!I2,_jhg9,2,),IF($H$2=10,VLOOKUP(übertrag!I2,_jhg10,2,),IF($H$2=11,VLOOKUP(übertrag!I2,_jhg11,2,),IF($H$2=12,VLOOKUP(übertrag!I2,jhgheim,2,),"")))))) ->  | O2: =IF(übertrag!$H$2=1,VLOOKUP(übertrag!I2,paß1,2,),IF($H$2=2,VLOOKUP(übertrag!I2,paß2,2,),IF($H$2=3,VLOOKUP(übertrag!I2,paß3,2,),IF($H$2=4,VLOOKUP(übertrag!I2,paß4,2,),IF($H$2=5,VLOOKUP(übertrag!I2,paß5,2,),IF($H$2=6,VLOOKUP(übertrag!I2,paß6,2,),"")))))) -> 107246 | P2: =IF(übertrag!$H$2=7,VLOOKUP(übertrag!I2,paß7,2,),IF($H$2=8,VLOOKUP(übertrag!I2,paß8,2,),IF($H$2=9,VLOOKUP(übertrag!I2,paß9,2,),IF($H$2=10,VLOOKUP(übertrag!I2,paß10,2,),IF($H$2=11,VLOOKUP(übertrag!I2,paß11,2,),IF($H$2=12,VLOOKUP(übertrag!I2,paßheim,2,),"")))))) ->  | Q2: TRUE | R2: FALSE | U2: 1 | V2: ='MANNSCHAFTEN+SPIELER'!A3 -> Rot-Weiß Hirschau | Z2: =IF(I16,VLOOKUP(übertrag!I16,Heimü,2,),"") -> Holger Jahn | AE2: 1
A3: 13 | B3: 1 | D3: 13 | I3: 3 | K3: =IF(übertrag!$H$2=1,VLOOKUP(übertrag!I3,einsü,2,),IF($H$2=2,VLOOKUP(übertrag!I3,zweiü,2,),IF($H$2=3,VLOOKUP(übertrag!I3,dreiü,2,),IF($H$2=4,VLOOKUP(übertrag!I3,vierü,2,),IF($H$2=5,VLOOKUP(übertrag!I3,fünfü,2,),IF($H$2=6,VLOOKUP(übertrag!I3,sechsü,2,),"")))))) -> Marcus Gevatter | L3: =IF(übertrag!$H$2=7,VLOOKUP(übertrag!I3,siebenü,2,),IF($H$2=8,VLOOKUP(übertrag!I3,achtü,2,),IF($H$2=9,VLOOKUP(übertrag!I3,neunü,2,),IF($H$2=10,VLOOKUP(übertrag!I3,zehnü,2,),IF($H$2=11,VLOOKUP(übertrag!I3,elfü,2,),IF($H$2=12,VLOOKUP(übertrag!I3,Heimü,2,),"")))))) ->  | M3: =IF(übertrag!$H$2=1,VLOOKUP(übertrag!I3,_jhg1,2,),IF($H$2=2,VLOOKUP(übertrag!I3,_jhg2,2,),IF($H$2=3,VLOOKUP(übertrag!I3,_jhg3,2,),IF($H$2=4,VLOOKUP(übertrag!I3,_jhg4,2,),IF($H$2=5,VLOOKUP(übertrag!I3,_jhg5,2,),IF($H$2=6,VLOOKUP(übertrag!I3,_jhg6,2,),"")))))) -> 04.98 | N3: =IF(übertrag!$H$2=7,VLOOKUP(übertrag!I3,_jhg7,2,),IF($H$2=8,VLOOKUP(übertrag!I3,_jhg8,2,),IF($H$2=9,VLOOKUP(übertrag!I3,_jhg9,2,),IF($H$2=10,VLOOKUP(übertrag!I3,_jhg10,2,),IF($H$2=11,VLOOKUP(übertrag!I3,_jhg11,2,),IF($H$2=12,VLOOKUP(übertrag!I3,jhgheim,2,),"")))))) ->  | O3: =IF(übertrag!$H$2=1,VLOOKUP(übertrag!I3,paß1,2,),IF($H$2=2,VLOOKUP(übertrag!I3,paß2,2,),IF($H$2=3,VLOOKUP(übertrag!I3,paß3,2,),IF($H$2=4,VLOOKUP(übertrag!I3,paß4,2,),IF($H$2=5,VLOOKUP(übertrag!I3,paß5,2,),IF($H$2=6,VLOOKUP(übertrag!I3,paß6,2,),"")))))) -> 16270 | P3: =IF(übertrag!$H$2=7,VLOOKUP(übertrag!I3,paß7,2,),IF($H$2=8,VLOOKUP(übertrag!I3,paß8,2,),IF($H$2=9,VLOOKUP(übertrag!I3,paß9,2,),IF($H$2=10,VLOOKUP(übertrag!I3,paß10,2,),IF($H$2=11,VLOOKUP(übertrag!I3,paß11,2,),IF($H$2=12,VLOOKUP(übertrag!I3,paßheim,2,),"")))))) ->  | Q3: FALSE | R3: FALSE | U3: 2 | V3: ='MANNSCHAFTEN+SPIELER'!A24 -> Gastmannschaft 2 | Z3: =IF(I17,VLOOKUP(übertrag!I17,Heimü,2,),"") -> Silvan Meinunger | AE3: 2
A4: 13 | B4: 9 | C4: 9 | D4: 13 | I4: 4 | K4: =IF(übertrag!$H$2=1,VLOOKUP(übertrag!I4,einsü,2,),IF($H$2=2,VLOOKUP(übertrag!I4,zweiü,2,),IF($H$2=3,VLOOKUP(übertrag!I4,dreiü,2,),IF($H$2=4,VLOOKUP(übertrag!I4,vierü,2,),IF($H$2=5,VLOOKUP(übertrag!I4,fünfü,2,),IF($H$2=6,VLOOKUP(übertrag!I4,sechsü,2,),"")))))) -> Thomas Immer | L4: =IF(übertrag!$H$2=7,VLOOKUP(übertrag!I4,siebenü,2,),IF($H$2=8,VLOOKUP(übertrag!I4,achtü,2,),IF($H$2=9,VLOOKUP(übertrag!I4,neunü,2,),IF($H$2=10,VLOOKUP(übertrag!I4,zehnü,2,),IF($H$2=11,VLOOKUP(übertrag!I4,elfü,2,),IF($H$2=12,VLOOKUP(übertrag!I4,Heimü,2,),"")))))) ->  | M4: =IF(übertrag!$H$2=1,VLOOKUP(übertrag!I4,_jhg1,2,),IF($H$2=2,VLOOKUP(übertrag!I4,_jhg2,2,),IF($H$2=3,VLOOKUP(übertrag!I4,_jhg3,2,),IF($H$2=4,VLOOKUP(übertrag!I4,_jhg4,2,),IF($H$2=5,VLOOKUP(übertrag!I4,_jhg5,2,),IF($H$2=6,VLOOKUP(übertrag!I4,_jhg6,2,),"")))))) -> 07.84 | N4: =IF(übertrag!$H$2=7,VLOOKUP(übertrag!I4,_jhg7,2,),IF($H$2=8,VLOOKUP(übertrag!I4,_jhg8,2,),IF($H$2=9,VLOOKUP(übertrag!I4,_jhg9,2,),IF($H$2=10,VLOOKUP(übertrag!I4,_jhg10,2,),IF($H$2=11,VLOOKUP(übertrag!I4,_jhg11,2,),IF($H$2=12,VLOOKUP(übertrag!I4,jhgheim,2,),"")))))) ->  | O4: =IF(übertrag!$H$2=1,VLOOKUP(übertrag!I4,paß1,2,),IF($H$2=2,VLOOKUP(übertrag!I4,paß2,2,),IF($H$2=3,VLOOKUP(übertrag!I4,paß3,2,),IF($H$2=4,VLOOKUP(übertrag!I4,paß4,2,),IF($H$2=5,VLOOKUP(übertrag!I4,paß5,2,),IF($H$2=6,VLOOKUP(übertrag!I4,paß6,2,),"")))))) -> 107563 | P4: =IF(übertrag!$H$2=7,VLOOKUP(übertrag!I4,paß7,2,),IF($H$2=8,VLOOKUP(übertrag!I4,paß8,2,),IF($H$2=9,VLOOKUP(übertrag!I4,paß9,2,),IF($H$2=10,VLOOKUP(übertrag!I4,paß10,2,),IF($H$2=11,VLOOKUP(übertrag!I4,paß11,2,),IF($H$2=12,VLOOKUP(übertrag!I4,paßheim,2,),"")))))) ->  | Q4: FALSE | U4: 3 | V4: ='MANNSCHAFTEN+SPIELER'!A45 -> Gastmannschaft 3 | Z4: =IF(I18,VLOOKUP(übertrag!I18,Heimü,2,),"") -> Pascal Österling | AE4: 3
A5: 13 | B5: 1 | D5: 13 | I5: 5 | K5: =IF(übertrag!$H$2=1,VLOOKUP(übertrag!I5,einsü,2,),IF($H$2=2,VLOOKUP(übertrag!I5,zweiü,2,),IF($H$2=3,VLOOKUP(übertrag!I5,dreiü,2,),IF($H$2=4,VLOOKUP(übertrag!I5,vierü,2,),IF($H$2=5,VLOOKUP(übertrag!I5,fünfü,2,),IF($H$2=6,VLOOKUP(übertrag!I5,sechsü,2,),"")))))) -> Manuel Donhauser | L5: =IF(übertrag!$H$2=7,VLOOKUP(übertrag!I5,siebenü,2,),IF($H$2=8,VLOOKUP(übertrag!I5,achtü,2,),IF($H$2=9,VLOOKUP(übertrag!I5,neunü,2,),IF($H$2=10,VLOOKUP(übertrag!I5,zehnü,2,),IF($H$2=11,VLOOKUP(übertrag!I5,elfü,2,),IF($H$2=12,VLOOKUP(übertrag!I5,Heimü,2,),"")))))) ->  | M5: =IF(übertrag!$H$2=1,VLOOKUP(übertrag!I5,_jhg1,2,),IF($H$2=2,VLOOKUP(übertrag!I5,_jhg2,2,),IF($H$2=3,VLOOKUP(übertrag!I5,_jhg3,2,),IF($H$2=4,VLOOKUP(übertrag!I5,_jhg4,2,),IF($H$2=5,VLOOKUP(übertrag!I5,_jhg5,2,),IF($H$2=6,VLOOKUP(übertrag!I5,_jhg6,2,),"")))))) -> 09.96 | N5: =IF(übertrag!$H$2=7,VLOOKUP(übertrag!I5,_jhg7,2,),IF($H$2=8,VLOOKUP(übertrag!I5,_jhg8,2,),IF($H$2=9,VLOOKUP(übertrag!I5,_jhg9,2,),IF($H$2=10,VLOOKUP(übertrag!I5,_jhg10,2,),IF($H$2=11,VLOOKUP(übertrag!I5,_jhg11,2,),IF($H$2=12,VLOOKUP(übertrag!I5,jhgheim,2,),"")))))) ->  | O5: =IF(übertrag!$H$2=1,VLOOKUP(übertrag!I5,paß1,2,),IF($H$2=2,VLOOKUP(übertrag!I5,paß2,2,),IF($H$2=3,VLOOKUP(übertrag!I5,paß3,2,),IF($H$2=4,VLOOKUP(übertrag!I5,paß4,2,),IF($H$2=5,VLOOKUP(übertrag!I5,paß5,2,),IF($H$2=6,VLOOKUP(übertrag!I5,paß6,2,),"")))))) -> 107632 | P5: =IF(übertrag!$H$2=7,VLOOKUP(übertrag!I5,paß7,2,),IF($H$2=8,VLOOKUP(übertrag!I5,paß8,2,),IF($H$2=9,VLOOKUP(übertrag!I5,paß9,2,),IF($H$2=10,VLOOKUP(übertrag!I5,paß10,2,),IF($H$2=11,VLOOKUP(übertrag!I5,paß11,2,),IF($H$2=12,VLOOKUP(übertrag!I5,paßheim,2,),"")))))) ->  | Q5: TRUE | U5: 4 | V5: ='MANNSCHAFTEN+SPIELER'!A66 -> Gastmannschaft 4 | Z5: =IF(I19,VLOOKUP(übertrag!I19,Heimü,2,),"") -> Olaf Pfaller | AE5: 4
A6: 13 | B6: 9 | C6: 9 | D6: 13 | I6: 6 | K6: =IF(übertrag!$H$2=1,VLOOKUP(übertrag!I6,einsü,2,),IF($H$2=2,VLOOKUP(übertrag!I6,zweiü,2,),IF($H$2=3,VLOOKUP(übertrag!I6,dreiü,2,),IF($H$2=4,VLOOKUP(übertrag!I6,vierü,2,),IF($H$2=5,VLOOKUP(übertrag!I6,fünfü,2,),IF($H$2=6,VLOOKUP(übertrag!I6,sechsü,2,),"")))))) -> Daniel Rösch | L6: =IF(übertrag!$H$2=7,VLOOKUP(übertrag!I6,siebenü,2,),IF($H$2=8,VLOOKUP(übertrag!I6,achtü,2,),IF($H$2=9,VLOOKUP(übertrag!I6,neunü,2,),IF($H$2=10,VLOOKUP(übertrag!I6,zehnü,2,),IF($H$2=11,VLOOKUP(übertrag!I6,elfü,2,),IF($H$2=12,VLOOKUP(übertrag!I6,Heimü,2,),"")))))) ->  | M6: =IF(übertrag!$H$2=1,VLOOKUP(übertrag!I6,_jhg1,2,),IF($H$2=2,VLOOKUP(übertrag!I6,_jhg2,2,),IF($H$2=3,VLOOKUP(übertrag!I6,_jhg3,2,),IF($H$2=4,VLOOKUP(übertrag!I6,_jhg4,2,),IF($H$2=5,VLOOKUP(übertrag!I6,_jhg5,2,),IF($H$2=6,VLOOKUP(übertrag!I6,_jhg6,2,),"")))))) -> 01.91 | N6: =IF(übertrag!$H$2=7,VLOOKUP(übertrag!I6,_jhg7,2,),IF($H$2=8,VLOOKUP(übertrag!I6,_jhg8,2,),IF($H$2=9,VLOOKUP(übertrag!I6,_jhg9,2,),IF($H$2=10,VLOOKUP(übertrag!I6,_jhg10,2,),IF($H$2=11,VLOOKUP(übertrag!I6,_jhg11,2,),IF($H$2=12,VLOOKUP(übertrag!I6,jhgheim,2,),"")))))) ->  | O6: =IF(übertrag!$H$2=1,VLOOKUP(übertrag!I6,paß1,2,),IF($H$2=2,VLOOKUP(übertrag!I6,paß2,2,),IF($H$2=3,VLOOKUP(übertrag!I6,paß3,2,),IF($H$2=4,VLOOKUP(übertrag!I6,paß4,2,),IF($H$2=5,VLOOKUP(übertrag!I6,paß5,2,),IF($H$2=6,VLOOKUP(übertrag!I6,paß6,2,),"")))))) -> 111231 | P6: =IF(übertrag!$H$2=7,VLOOKUP(übertrag!I6,paß7,2,),IF($H$2=8,VLOOKUP(übertrag!I6,paß8,2,),IF($H$2=9,VLOOKUP(übertrag!I6,paß9,2,),IF($H$2=10,VLOOKUP(übertrag!I6,paß10,2,),IF($H$2=11,VLOOKUP(übertrag!I6,paß11,2,),IF($H$2=12,VLOOKUP(übertrag!I6,paßheim,2,),"")))))) ->  | Q6: FALSE | U6: 5 | V6: ='MANNSCHAFTEN+SPIELER'!A87 -> Gastmannschaft 5 | Z6: =IF(I20,VLOOKUP(übertrag!I20,Heimü,2,),"") -> Georg Schropp | AE6: 5
A7: 13 | B7: 1 | D7: 13 | I7: 7 | K7: =IF(übertrag!$H$2=1,VLOOKUP(übertrag!I7,einsü,2,),IF($H$2=2,VLOOKUP(übertrag!I7,zweiü,2,),IF($H$2=3,VLOOKUP(übertrag!I7,dreiü,2,),IF($H$2=4,VLOOKUP(übertrag!I7,vierü,2,),IF($H$2=5,VLOOKUP(übertrag!I7,fünfü,2,),IF($H$2=6,VLOOKUP(übertrag!I7,sechsü,2,),"")))))) -> Alexander Held | L7: =IF(übertrag!$H$2=7,VLOOKUP(übertrag!I7,siebenü,2,),IF($H$2=8,VLOOKUP(übertrag!I7,achtü,2,),IF($H$2=9,VLOOKUP(übertrag!I7,neunü,2,),IF($H$2=10,VLOOKUP(übertrag!I7,zehnü,2,),IF($H$2=11,VLOOKUP(übertrag!I7,elfü,2,),IF($H$2=12,VLOOKUP(übertrag!I7,Heimü,2,),"")))))) ->  | M7: =IF(übertrag!$H$2=1,VLOOKUP(übertrag!I7,_jhg1,2,),IF($H$2=2,VLOOKUP(übertrag!I7,_jhg2,2,),IF($H$2=3,VLOOKUP(übertrag!I7,_jhg3,2,),IF($H$2=4,VLOOKUP(übertrag!I7,_jhg4,2,),IF($H$2=5,VLOOKUP(übertrag!I7,_jhg5,2,),IF($H$2=6,VLOOKUP(übertrag!I7,_jhg6,2,),"")))))) -> 07.91 | N7: =IF(übertrag!$H$2=7,VLOOKUP(übertrag!I7,_jhg7,2,),IF($H$2=8,VLOOKUP(übertrag!I7,_jhg8,2,),IF($H$2=9,VLOOKUP(übertrag!I7,_jhg9,2,),IF($H$2=10,VLOOKUP(übertrag!I7,_jhg10,2,),IF($H$2=11,VLOOKUP(übertrag!I7,_jhg11,2,),IF($H$2=12,VLOOKUP(übertrag!I7,jhgheim,2,),"")))))) ->  | O7: =IF(übertrag!$H$2=1,VLOOKUP(übertrag!I7,paß1,2,),IF($H$2=2,VLOOKUP(übertrag!I7,paß2,2,),IF($H$2=3,VLOOKUP(übertrag!I7,paß3,2,),IF($H$2=4,VLOOKUP(übertrag!I7,paß4,2,),IF($H$2=5,VLOOKUP(übertrag!I7,paß5,2,),IF($H$2=6,VLOOKUP(übertrag!I7,paß6,2,),"")))))) -> 113989 | P7: =IF(übertrag!$H$2=7,VLOOKUP(übertrag!I7,paß7,2,),IF($H$2=8,VLOOKUP(übertrag!I7,paß8,2,),IF($H$2=9,VLOOKUP(übertrag!I7,paß9,2,),IF($H$2=10,VLOOKUP(übertrag!I7,paß10,2,),IF($H$2=11,VLOOKUP(übertrag!I7,paß11,2,),IF($H$2=12,VLOOKUP(übertrag!I7,paßheim,2,),"")))))) ->  | Q7: FALSE | U7: 6 | V7: ='MANNSCHAFTEN+SPIELER'!A108 -> Gastmannschaft 6 | Z7: =IF(I21,VLOOKUP(übertrag!I21,Heimü,2,),"") -> Marco Endres | AE7: 6
A8: 13 | B8: 9 | C8: 9 | D8: 13 | I8: 1 | K8: =IF(übertrag!$H$2=1,VLOOKUP(übertrag!I8,einsü,2,),IF($H$2=2,VLOOKUP(übertrag!I8,zweiü,2,),IF($H$2=3,VLOOKUP(übertrag!I8,dreiü,2,),IF($H$2=4,VLOOKUP(übertrag!I8,vierü,2,),IF($H$2=5,VLOOKUP(übertrag!I8,fünfü,2,),IF($H$2=6,VLOOKUP(übertrag!I8,sechsü,2,),"")))))) -> 0 | L8: =IF(übertrag!$H$2=7,VLOOKUP(übertrag!I8,siebenü,2,),IF($H$2=8,VLOOKUP(übertrag!I8,achtü,2,),IF($H$2=9,VLOOKUP(übertrag!I8,neunü,2,),IF($H$2=10,VLOOKUP(übertrag!I8,zehnü,2,),IF($H$2=11,VLOOKUP(übertrag!I8,elfü,2,),IF($H$2=12,VLOOKUP(übertrag!I8,Heimü,2,),"")))))) ->  | M8: =IF(übertrag!$H$2=1,VLOOKUP(übertrag!I8,_jhg1,2,),IF($H$2=2,VLOOKUP(übertrag!I8,_jhg2,2,),IF($H$2=3,VLOOKUP(übertrag!I8,_jhg3,2,),IF($H$2=4,VLOOKUP(übertrag!I8,_jhg4,2,),IF($H$2=5,VLOOKUP(übertrag!I8,_jhg5,2,),IF($H$2=6,VLOOKUP(übertrag!I8,_jhg6,2,),"")))))) -> 0 | N8: =IF(übertrag!$H$2=7,VLOOKUP(übertrag!I8,_jhg7,2,),IF($H$2=8,VLOOKUP(übertrag!I8,_jhg8,2,),IF($H$2=9,VLOOKUP(übertrag!I8,_jhg9,2,),IF($H$2=10,VLOOKUP(übertrag!I8,_jhg10,2,),IF($H$2=11,VLOOKUP(übertrag!I8,_jhg11,2,),IF($H$2=12,VLOOKUP(übertrag!I8,jhgheim,2,),"")))))) ->  | O8: =IF(übertrag!$H$2=1,VLOOKUP(übertrag!I8,paß1,2,),IF($H$2=2,VLOOKUP(übertrag!I8,paß2,2,),IF($H$2=3,VLOOKUP(übertrag!I8,paß3,2,),IF($H$2=4,VLOOKUP(übertrag!I8,paß4,2,),IF($H$2=5,VLOOKUP(übertrag!I8,paß5,2,),IF($H$2=6,VLOOKUP(übertrag!I8,paß6,2,),"")))))) -> 0 | P8: =IF(übertrag!$H$2=7,VLOOKUP(übertrag!I8,paß7,2,),IF($H$2=8,VLOOKUP(übertrag!I8,paß8,2,),IF($H$2=9,VLOOKUP(übertrag!I8,paß9,2,),IF($H$2=10,VLOOKUP(übertrag!I8,paß10,2,),IF($H$2=11,VLOOKUP(übertrag!I8,paß11,2,),IF($H$2=12,VLOOKUP(übertrag!I8,paßheim,2,),"")))))) ->  | Q8: FALSE | U8: 7 | V8: ='MANNSCHAFTEN+SPIELER'!A129 -> Gastmannschaft 7 | Z8: =IF(I22,VLOOKUP(übertrag!I22,Heimü,2,),"") -> Andreas Aumüller | AE8: 7
I9: 1 | K9: =IF(übertrag!$H$2=1,VLOOKUP(übertrag!I9,einsü,2,),IF($H$2=2,VLOOKUP(übertrag!I9,zweiü,2,),IF($H$2=3,VLOOKUP(übertrag!I9,dreiü,2,),IF($H$2=4,VLOOKUP(übertrag!I9,vierü,2,),IF($H$2=5,VLOOKUP(übertrag!I9,fünfü,2,),IF($H$2=6,VLOOKUP(übertrag!I9,sechsü,2,),"")))))) -> 0 | L9: =IF(übertrag!$H$2=7,VLOOKUP(übertrag!I9,siebenü,2,),IF($H$2=8,VLOOKUP(übertrag!I9,achtü,2,),IF($H$2=9,VLOOKUP(übertrag!I9,neunü,2,),IF($H$2=10,VLOOKUP(übertrag!I9,zehnü,2,),IF($H$2=11,VLOOKUP(übertrag!I9,elfü,2,),IF($H$2=12,VLOOKUP(übertrag!I9,Heimü,2,),"")))))) ->  | M9: =IF(übertrag!$H$2=1,VLOOKUP(übertrag!I9,_jhg1,2,),IF($H$2=2,VLOOKUP(übertrag!I9,_jhg2,2,),IF($H$2=3,VLOOKUP(übertrag!I9,_jhg3,2,),IF($H$2=4,VLOOKUP(übertrag!I9,_jhg4,2,),IF($H$2=5,VLOOKUP(übertrag!I9,_jhg5,2,),IF($H$2=6,VLOOKUP(übertrag!I9,_jhg6,2,),"")))))) -> 0 | N9: =IF(übertrag!$H$2=7,VLOOKUP(übertrag!I9,_jhg7,2,),IF($H$2=8,VLOOKUP(übertrag!I9,_jhg8,2,),IF($H$2=9,VLOOKUP(übertrag!I9,_jhg9,2,),IF($H$2=10,VLOOKUP(übertrag!I9,_jhg10,2,),IF($H$2=11,VLOOKUP(übertrag!I9,_jhg11,2,),IF($H$2=12,VLOOKUP(übertrag!I9,jhgheim,2,),"")))))) ->  | O9: =IF(übertrag!$H$2=1,VLOOKUP(übertrag!I9,paß1,2,),IF($H$2=2,VLOOKUP(übertrag!I9,paß2,2,),IF($H$2=3,VLOOKUP(übertrag!I9,paß3,2,),IF($H$2=4,VLOOKUP(übertrag!I9,paß4,2,),IF($H$2=5,VLOOKUP(übertrag!I9,paß5,2,),IF($H$2=6,VLOOKUP(übertrag!I9,paß6,2,),"")))))) -> 0 | P9: =IF(übertrag!$H$2=7,VLOOKUP(übertrag!I9,paß7,2,),IF($H$2=8,VLOOKUP(übertrag!I9,paß8,2,),IF($H$2=9,VLOOKUP(übertrag!I9,paß9,2,),IF($H$2=10,VLOOKUP(übertrag!I9,paß10,2,),IF($H$2=11,VLOOKUP(übertrag!I9,paß11,2,),IF($H$2=12,VLOOKUP(übertrag!I9,paßheim,2,),"")))))) ->  | Q9: FALSE | U9: 8 | V9: ='MANNSCHAFTEN+SPIELER'!A150 -> Gastmannschaft 8 | Z9: =IF(I23,VLOOKUP(übertrag!I23,Heimü,2,),"") -> 0 | AE9: 8
B10: 9 | C10: 9 | I10: 1 | K10: =IF(übertrag!$H$2=1,VLOOKUP(übertrag!I10,einsü,2,),IF($H$2=2,VLOOKUP(übertrag!I10,zweiü,2,),IF($H$2=3,VLOOKUP(übertrag!I10,dreiü,2,),IF($H$2=4,VLOOKUP(übertrag!I10,vierü,2,),IF($H$2=5,VLOOKUP(übertrag!I10,fünfü,2,),IF($H$2=6,VLOOKUP(übertrag!I10,sechsü,2,),"")))))) -> 0 | L10: =IF(übertrag!$H$2=7,VLOOKUP(übertrag!I10,siebenü,2,),IF($H$2=8,VLOOKUP(übertrag!I10,achtü,2,),IF($H$2=9,VLOOKUP(übertrag!I10,neunü,2,),IF($H$2=10,VLOOKUP(übertrag!I10,zehnü,2,),IF($H$2=11,VLOOKUP(übertrag!I10,elfü,2,),IF($H$2=12,VLOOKUP(übertrag!I10,Heimü,2,),"")))))) ->  | M10: =IF(übertrag!$H$2=1,VLOOKUP(übertrag!I10,_jhg1,2,),IF($H$2=2,VLOOKUP(übertrag!I10,_jhg2,2,),IF($H$2=3,VLOOKUP(übertrag!I10,_jhg3,2,),IF($H$2=4,VLOOKUP(übertrag!I10,_jhg4,2,),IF($H$2=5,VLOOKUP(übertrag!I10,_jhg5,2,),IF($H$2=6,VLOOKUP(übertrag!I10,_jhg6,2,),"")))))) -> 0 | N10: =IF(übertrag!$H$2=7,VLOOKUP(übertrag!I10,_jhg7,2,),IF($H$2=8,VLOOKUP(übertrag!I10,_jhg8,2,),IF($H$2=9,VLOOKUP(übertrag!I10,_jhg9,2,),IF($H$2=10,VLOOKUP(übertrag!I10,_jhg10,2,),IF($H$2=11,VLOOKUP(übertrag!I10,_jhg11,2,),IF($H$2=12,VLOOKUP(übertrag!I10,jhgheim,2,),"")))))) ->  | O10: =IF(übertrag!$H$2=1,VLOOKUP(übertrag!I10,paß1,2,),IF($H$2=2,VLOOKUP(übertrag!I10,paß2,2,),IF($H$2=3,VLOOKUP(übertrag!I10,paß3,2,),IF($H$2=4,VLOOKUP(übertrag!I10,paß4,2,),IF($H$2=5,VLOOKUP(übertrag!I10,paß5,2,),IF($H$2=6,VLOOKUP(übertrag!I10,paß6,2,),"")))))) -> 0 | P10: =IF(übertrag!$H$2=7,VLOOKUP(übertrag!I10,paß7,2,),IF($H$2=8,VLOOKUP(übertrag!I10,paß8,2,),IF($H$2=9,VLOOKUP(übertrag!I10,paß9,2,),IF($H$2=10,VLOOKUP(übertrag!I10,paß10,2,),IF($H$2=11,VLOOKUP(übertrag!I10,paß11,2,),IF($H$2=12,VLOOKUP(übertrag!I10,paßheim,2,),"")))))) ->  | Q10: FALSE | U10: 9 | V10: ='MANNSCHAFTEN+SPIELER'!A171 -> Gastmannschaft 9 | Z10: =IF(I24,VLOOKUP(übertrag!I24,Heimü,2,),"") -> 0 | AE10: 9
I11: 1 | K11: =IF(übertrag!$H$2=1,VLOOKUP(übertrag!I11,einsü,2,),IF($H$2=2,VLOOKUP(übertrag!I11,zweiü,2,),IF($H$2=3,VLOOKUP(übertrag!I11,dreiü,2,),IF($H$2=4,VLOOKUP(übertrag!I11,vierü,2,),IF($H$2=5,VLOOKUP(übertrag!I11,fünfü,2,),IF($H$2=6,VLOOKUP(übertrag!I11,sechsü,2,),"")))))) -> 0 | L11: =IF(übertrag!$H$2=7,VLOOKUP(übertrag!I11,siebenü,2,),IF($H$2=8,VLOOKUP(übertrag!I11,achtü,2,),IF($H$2=9,VLOOKUP(übertrag!I11,neunü,2,),IF($H$2=10,VLOOKUP(übertrag!I11,zehnü,2,),IF($H$2=11,VLOOKUP(übertrag!I11,elfü,2,),IF($H$2=12,VLOOKUP(übertrag!I11,Heimü,2,),"")))))) ->  | M11: =IF(übertrag!$H$2=1,VLOOKUP(übertrag!I11,_jhg1,2,),IF($H$2=2,VLOOKUP(übertrag!I11,_jhg2,2,),IF($H$2=3,VLOOKUP(übertrag!I11,_jhg3,2,),IF($H$2=4,VLOOKUP(übertrag!I11,_jhg4,2,),IF($H$2=5,VLOOKUP(übertrag!I11,_jhg5,2,),IF($H$2=6,VLOOKUP(übertrag!I11,_jhg6,2,),"")))))) -> 0 | N11: =IF(übertrag!$H$2=7,VLOOKUP(übertrag!I11,_jhg7,2,),IF($H$2=8,VLOOKUP(übertrag!I11,_jhg8,2,),IF($H$2=9,VLOOKUP(übertrag!I11,_jhg9,2,),IF($H$2=10,VLOOKUP(übertrag!I11,_jhg10,2,),IF($H$2=11,VLOOKUP(übertrag!I11,_jhg11,2,),IF($H$2=12,VLOOKUP(übertrag!I11,jhgheim,2,),"")))))) ->  | O11: =IF(übertrag!$H$2=1,VLOOKUP(übertrag!I11,paß1,2,),IF($H$2=2,VLOOKUP(übertrag!I11,paß2,2,),IF($H$2=3,VLOOKUP(übertrag!I11,paß3,2,),IF($H$2=4,VLOOKUP(übertrag!I11,paß4,2,),IF($H$2=5,VLOOKUP(übertrag!I11,paß5,2,),IF($H$2=6,VLOOKUP(übertrag!I11,paß6,2,),"")))))) -> 0 | P11: =IF(übertrag!$H$2=7,VLOOKUP(übertrag!I11,paß7,2,),IF($H$2=8,VLOOKUP(übertrag!I11,paß8,2,),IF($H$2=9,VLOOKUP(übertrag!I11,paß9,2,),IF($H$2=10,VLOOKUP(übertrag!I11,paß10,2,),IF($H$2=11,VLOOKUP(übertrag!I11,paß11,2,),IF($H$2=12,VLOOKUP(übertrag!I11,paßheim,2,),"")))))) ->  | Q11: FALSE | U11: 10 | V11: ='MANNSCHAFTEN+SPIELER'!A192 -> Gastmannschaft 10 | Z11: =IF(I25,VLOOKUP(übertrag!I25,Heimü,2,),"") -> 0 | AE11: 10
I12: 1 | K12: =IF(übertrag!$H$2=1,VLOOKUP(übertrag!I12,einsü,2,),IF($H$2=2,VLOOKUP(übertrag!I12,zweiü,2,),IF($H$2=3,VLOOKUP(übertrag!I12,dreiü,2,),IF($H$2=4,VLOOKUP(übertrag!I12,vierü,2,),IF($H$2=5,VLOOKUP(übertrag!I12,fünfü,2,),IF($H$2=6,VLOOKUP(übertrag!I12,sechsü,2,),"")))))) -> 0 | L12: =IF(übertrag!$H$2=7,VLOOKUP(übertrag!I12,siebenü,2,),IF($H$2=8,VLOOKUP(übertrag!I12,achtü,2,),IF($H$2=9,VLOOKUP(übertrag!I12,neunü,2,),IF($H$2=10,VLOOKUP(übertrag!I12,zehnü,2,),IF($H$2=11,VLOOKUP(übertrag!I12,elfü,2,),IF($H$2=12,VLOOKUP(übertrag!I12,Heimü,2,),"")))))) ->  | M12: =IF(übertrag!$H$2=1,VLOOKUP(übertrag!I12,_jhg1,2,),IF($H$2=2,VLOOKUP(übertrag!I12,_jhg2,2,),IF($H$2=3,VLOOKUP(übertrag!I12,_jhg3,2,),IF($H$2=4,VLOOKUP(übertrag!I12,_jhg4,2,),IF($H$2=5,VLOOKUP(übertrag!I12,_jhg5,2,),IF($H$2=6,VLOOKUP(übertrag!I12,_jhg6,2,),"")))))) -> 0 | N12: =IF(übertrag!$H$2=7,VLOOKUP(übertrag!I12,_jhg7,2,),IF($H$2=8,VLOOKUP(übertrag!I12,_jhg8,2,),IF($H$2=9,VLOOKUP(übertrag!I12,_jhg9,2,),IF($H$2=10,VLOOKUP(übertrag!I12,_jhg10,2,),IF($H$2=11,VLOOKUP(übertrag!I12,_jhg11,2,),IF($H$2=12,VLOOKUP(übertrag!I12,jhgheim,2,),"")))))) ->  | O12: =IF(übertrag!$H$2=1,VLOOKUP(übertrag!I12,paß1,2,),IF($H$2=2,VLOOKUP(übertrag!I12,paß2,2,),IF($H$2=3,VLOOKUP(übertrag!I12,paß3,2,),IF($H$2=4,VLOOKUP(übertrag!I12,paß4,2,),IF($H$2=5,VLOOKUP(übertrag!I12,paß5,2,),IF($H$2=6,VLOOKUP(übertrag!I12,paß6,2,),"")))))) -> 0 | P12: =IF(übertrag!$H$2=7,VLOOKUP(übertrag!I12,paß7,2,),IF($H$2=8,VLOOKUP(übertrag!I12,paß8,2,),IF($H$2=9,VLOOKUP(übertrag!I12,paß9,2,),IF($H$2=10,VLOOKUP(übertrag!I12,paß10,2,),IF($H$2=11,VLOOKUP(übertrag!I12,paß11,2,),IF($H$2=12,VLOOKUP(übertrag!I12,paßheim,2,),"")))))) ->  | U12: 11 | V12: ='MANNSCHAFTEN+SPIELER'!A213 -> Gastmannschaft 11 | Z12: =IF(I26,VLOOKUP(übertrag!I26,Heimü,2,),"") -> 0 | AE12: 11
I13: 1 | K13: =IF(übertrag!$H$2=1,VLOOKUP(übertrag!I13,einsü,2,),IF($H$2=2,VLOOKUP(übertrag!I13,zweiü,2,),IF($H$2=3,VLOOKUP(übertrag!I13,dreiü,2,),IF($H$2=4,VLOOKUP(übertrag!I13,vierü,2,),IF($H$2=5,VLOOKUP(übertrag!I13,fünfü,2,),IF($H$2=6,VLOOKUP(übertrag!I13,sechsü,2,),"")))))) -> 0 | L13: =IF(übertrag!$H$2=7,VLOOKUP(übertrag!I13,siebenü,2,),IF($H$2=8,VLOOKUP(übertrag!I13,achtü,2,),IF($H$2=9,VLOOKUP(übertrag!I13,neunü,2,),IF($H$2=10,VLOOKUP(übertrag!I13,zehnü,2,),IF($H$2=11,VLOOKUP(übertrag!I13,elfü,2,),IF($H$2=12,VLOOKUP(übertrag!I13,Heimü,2,),"")))))) ->  | M13: =IF(übertrag!$H$2=1,VLOOKUP(übertrag!I13,_jhg1,2,),IF($H$2=2,VLOOKUP(übertrag!I13,_jhg2,2,),IF($H$2=3,VLOOKUP(übertrag!I13,_jhg3,2,),IF($H$2=4,VLOOKUP(übertrag!I13,_jhg4,2,),IF($H$2=5,VLOOKUP(übertrag!I13,_jhg5,2,),IF($H$2=6,VLOOKUP(übertrag!I13,_jhg6,2,),"")))))) -> 0 | N13: =IF(übertrag!$H$2=7,VLOOKUP(übertrag!I13,_jhg7,2,),IF($H$2=8,VLOOKUP(übertrag!I13,_jhg8,2,),IF($H$2=9,VLOOKUP(übertrag!I13,_jhg9,2,),IF($H$2=10,VLOOKUP(übertrag!I13,_jhg10,2,),IF($H$2=11,VLOOKUP(übertrag!I13,_jhg11,2,),IF($H$2=12,VLOOKUP(übertrag!I13,jhgheim,2,),"")))))) ->  | O13: =IF(übertrag!$H$2=1,VLOOKUP(übertrag!I13,paß1,2,),IF($H$2=2,VLOOKUP(übertrag!I13,paß2,2,),IF($H$2=3,VLOOKUP(übertrag!I13,paß3,2,),IF($H$2=4,VLOOKUP(übertrag!I13,paß4,2,),IF($H$2=5,VLOOKUP(übertrag!I13,paß5,2,),IF($H$2=6,VLOOKUP(übertrag!I13,paß6,2,),"")))))) -> 0 | P13: =IF(übertrag!$H$2=7,VLOOKUP(übertrag!I13,paß7,2,),IF($H$2=8,VLOOKUP(übertrag!I13,paß8,2,),IF($H$2=9,VLOOKUP(übertrag!I13,paß9,2,),IF($H$2=10,VLOOKUP(übertrag!I13,paß10,2,),IF($H$2=11,VLOOKUP(übertrag!I13,paß11,2,),IF($H$2=12,VLOOKUP(übertrag!I13,paßheim,2,),"")))))) ->  | U13: 12 | V13: ='MANNSCHAFTEN+SPIELER'!O3 -> 1.SKK Gut Holz Zeil 1 | Z13: =IF(I27,VLOOKUP(übertrag!I27,Heimü,2,),"") -> Andreas Aumüller | AE13: 12
I14: 10 | U14: 13 | Z14: =IF(I28,VLOOKUP(übertrag!I28,Heimü,2,),"") -> 0 | AE14: 13
U15: 14 | Z15: =IF(I29,VLOOKUP(übertrag!I29,Heimü,2,),"") -> 0 | AE15: 14
I16: 2 | K16: =IF(I16,VLOOKUP(übertrag!I16,paßheim,2,),"") -> 120763 | M16: =IF(I16,VLOOKUP(übertrag!I16,jhgheim,2,),"") -> 06.72 | O16: =IF(übertrag!I16,VLOOKUP(übertrag!I16,paßheim,2,),"") -> 120763 | Q16: TRUE | Z16: =IF(I25,VLOOKUP(übertrag!I25,Heimü,2,),"") -> 0 | AE16: 15
B17: 9 | C17: 9 | I17: 3 | K17: =IF(I17,VLOOKUP(übertrag!I17,paßheim,2,),"") -> 79060 | M17: =IF(I17,VLOOKUP(übertrag!I17,jhgheim,2,),"") -> 10.03 | O17: =IF(übertrag!I17,VLOOKUP(übertrag!I17,paßheim,2,),"") -> 79060 | Q17: TRUE | Z17: =IF(I26,VLOOKUP(übertrag!I26,Heimü,2,),"") -> 0 | AE17: 16
B18: 1 | I18: 4 | K18: =IF(I18,VLOOKUP(übertrag!I18,paßheim,2,),"") -> 29339 | M18: =IF(I18,VLOOKUP(übertrag!I18,jhgheim,2,),"") -> 06.00 | O18: =IF(übertrag!I18,VLOOKUP(übertrag!I18,paßheim,2,),"") -> 29339 | Q18: TRUE | Z18: =IF(I27,VLOOKUP(übertrag!I27,Heimü,2,),"") -> Andreas Aumüller | AE18: 17
B19: 9 | C19: 9 | I19: 5 | K19: =IF(I19,VLOOKUP(übertrag!I19,paßheim,2,),"") -> 120769 | M19: =IF(I19,VLOOKUP(übertrag!I19,jhgheim,2,),"") -> 07.69 | O19: =IF(übertrag!I19,VLOOKUP(übertrag!I19,paßheim,2,),"") -> 120769 | Q19: TRUE | AE19: 18
I20: 6 | K20: =IF(I20,VLOOKUP(übertrag!I20,paßheim,2,),"") -> 120774 | M20: =IF(I20,VLOOKUP(übertrag!I20,jhgheim,2,),"") -> 07.61 | O20: =IF(übertrag!I20,VLOOKUP(übertrag!I20,paßheim,2,),"") -> 120774 | Q20: FALSE | AE20: 19
I21: 7 | K21: =IF(I21,VLOOKUP(übertrag!I21,paßheim,2,),"") -> 23647 | M21: =IF(I21,VLOOKUP(übertrag!I21,jhgheim,2,),"") -> 01.98 | O21: =IF(übertrag!I21,VLOOKUP(übertrag!I21,paßheim,2,),"") -> 23647 | Q21: TRUE | AE21: 20
I22: 8 | K22: =IF(I22,VLOOKUP(übertrag!I22,paßheim,2,),"") -> 120812 | M22: =IF(I22,VLOOKUP(übertrag!I22,jhgheim,2,),"") -> 07.97 | O22: =IF(übertrag!I22,VLOOKUP(übertrag!I22,paßheim,2,),"") -> 120812 | Q22: TRUE | AE22: 21
I23: 1 | K23: =IF(I23,VLOOKUP(übertrag!I23,paßheim,2,),"") -> 0 | M23: =IF(I23,VLOOKUP(übertrag!I23,jhgheim,2,),"") -> 00:00:00 | O23: =IF(übertrag!I23,VLOOKUP(übertrag!I23,paßheim,2,),"") -> 0 | Q23: FALSE | AE23: 22
I24: 1 | K24: =IF(I24,VLOOKUP(übertrag!I24,paßheim,2,),"") -> 0 | M24: =IF(I24,VLOOKUP(übertrag!I24,jhgheim,2,),"") -> 00:00:00 | O24: =IF(übertrag!I24,VLOOKUP(übertrag!I24,paßheim,2,),"") -> 0 | Q24: FALSE
I25: 1 | K25: =IF(I25,VLOOKUP(übertrag!I25,paßheim,2,),"") -> 0 | M25: =IF(I25,VLOOKUP(übertrag!I25,jhgheim,2,),"") -> 00:00:00 | O25: =IF(übertrag!I25,VLOOKUP(übertrag!I25,paßheim,2,),"") -> 0 | Q25: TRUE | AE25: 14
I26: 1 | K26: =IF(I26,VLOOKUP(übertrag!I26,paßheim,2,),"") -> 0 | M26: =IF(I26,VLOOKUP(übertrag!I26,jhgheim,2,),"") -> 00:00:00 | O26: =IF(übertrag!I26,VLOOKUP(übertrag!I26,paßheim,2,),"") -> 0 | Q26: FALSE
I27: 8 | K27: =IF(I27,VLOOKUP(übertrag!I27,paßheim,2,),"") -> 120812 | M27: =IF(I27,VLOOKUP(übertrag!I27,jhgheim,2,),"") -> 07.97 | O27: =IF(übertrag!I27,VLOOKUP(übertrag!I27,paßheim,2,),"") -> 120812 | Q27: TRUE
I28: 1 | K28: =IF(I28,VLOOKUP(übertrag!I28,paßheim,2,),"") -> 0 | M28: =IF(I28,VLOOKUP(übertrag!I28,jhgheim,2,),"") -> 00:00:00 | O28: =IF(übertrag!I28,VLOOKUP(übertrag!I28,paßheim,2,),"") -> 0 | Q28: FALSE
I29: 13 | M29: =IF(I29,VLOOKUP(übertrag!I29,jhgheim,2,),"") -> 00:00:00 | O29: =IF(übertrag!I29,VLOOKUP(übertrag!I29,paßheim,2,),"") -> 0 | Q29: TRUE
M30: =IF(I30,VLOOKUP(übertrag!I30,jhgheim,2,),"") ->  | O30: =IF(übertrag!I30,VLOOKUP(übertrag!I30,paßheim,2,),"") ->  | Q30: FALSE
M31: =IF(I31,VLOOKUP(übertrag!I31,jhgheim,2,),"") ->  | O31: =IF(übertrag!I31,VLOOKUP(übertrag!I31,paßheim,2,),"") ->  | Q31: FALSE
M32: =IF(I32,VLOOKUP(übertrag!I32,jhgheim,2,),"") ->  | O32: =IF(übertrag!I32,VLOOKUP(übertrag!I32,paßheim,2,),"") ->  | Q32: FALSE
M33: =IF(I33,VLOOKUP(übertrag!I33,jhgheim,2,),"") ->  | O33: =IF(übertrag!I33,VLOOKUP(übertrag!I33,paßheim,2,),"") ->  | Q33: FALSE
G117: Bemerkungen zu:
